Workbook

Sheet BB
A1: BEGINNER BANDO - 2018 WINTER HEAT POINTS
B2: CAR NUMBER | C2: DRIVERS NAME | D2: HOME TOWN | F2: 2017-12-16 | G2: 2017-12-16 | H2: 2017-12-17 | I2: 2018-01-21 | J2: 2018-01-21 | K2: 2018-01-27 | L2: 2018-02-03 | M2: CANCELED
A3: 1 | B3: 1 | C3: Nate Honeycutt | F3: X | G3: X | H3: X
A4: 2 | B4: 8 | C4: Griffin Taylor | F4: 1 | G4: 1 | H4: 1
A5: 3 | B5: 9 | C5: Mykenzie Cozart | F5: X | G5: X | H5: X
A6: 4 | B6: 12 | C6: Natasha Elder | H6: X | I6: 1 | J6: 1
A7: 5 | B7: 18 | C7: Alex Meggs | F7: X | G7: X | H7: X
A8: 6 | B8: 21 | C8: Carter Russo | F8: X | G8: X | H8: X
A9: 7 | B9: 22 | C9: Whitney Meggs | F9: X | G9: X | H9: X
A10: 8 | B10: 99 | C10: Sean McElearney | F10: X | G10: X | H10: X
A11: 9
A12: 10
A13: 11
A14: 12
A15: 13
A16: 14
A17: 15
A18: 16
A19: 17
A20: 18
A21: 19
A22: 20

Sheet Bandits
A1: BANDIT - 2018 WINTER HEAT POINTS
A2: CHAMPIONSHIP STANDING | B2: CAR NUMBER | C2: DRIVERS NAME | E2: TOTAL POINTS | F2: 2017-12-16 | G2: 2017-12-17 | H2: 2018-01-21 | I2: 2018-01-21 | J2: 2018-01-27 | K2: 2018-01-27 | L2: 2018-02-03 | M2: CANCELED | O2: 2017-12-16 | P2: 2017-12-17 | Q2: 2017-01-20 | R2: 2018-01-20 | S2: 2018-01-27 | T2: 2018-01-27 | U2: 2018-02-03 | V2: CANCELED
A3: 1 | B3: 19 | C3: Jaiden Reyna | E3: =SUM(O3:U3) -> 582 | F3: 8 | G3: 3 | H3: 2 | I3: 2 | J3: 3 | K3: 1 | L3: 1 | O3: 0 | P3: =VLOOKUP(G3,'Point Values'!$A:$B,2,FALSE) -> 94 | Q3: =VLOOKUP(H3,'Point Values'!$A:$B,2,FALSE) -> 97 | R3: =VLOOKUP(I3,'Point Values'!$A:$B,2,FALSE) -> 97 | S3: =VLOOKUP(J3,'Point Values'!$A:$B,2,FALSE) -> 94 | T3: =VLOOKUP(K3,'Point Values'!$A:$B,2,FALSE) -> 100 | U3: =VLOOKUP(L3,'Point Values'!$A:$B,2,FALSE) -> 100
A4: 2 | B4: 48 | C4: Bobby Elder | E4: 567 | F4: 4 | G4: 4 | H4: 3 | I4: . | J4: 2 | K4: 2 | L4: 2 | O4: =VLOOKUP(F4,'Point Values'!$A:$B,2,FALSE) -> 91 | P4: =VLOOKUP(G4,'Point Values'!$A:$B,2,FALSE) -> 91 | Q4: =VLOOKUP(H4,'Point Values'!$A:$B,2,FALSE) -> 94 | R4: =VLOOKUP(I4,'Point Values'!$A:$B,2,FALSE) -> 0 | S4: =VLOOKUP(J4,'Point Values'!$A:$B,2,FALSE) -> 97 | T4: =VLOOKUP(K4,'Point Values'!$A:$B,2,FALSE) -> 97 | U4: =VLOOKUP(L4,'Point Values'!$A:$B,2,FALSE) -> 97
A5: 3 | B5: 74 | C5: Lucas Vera | E5: 546 | F5: 9 | G5: . | H5: 7 | I5: 3 | J5: 1 | K5: 3 | L5: 3 | O5: =VLOOKUP(F5,'Point Values'!$A:$B,2,FALSE) -> 80 | P5: =VLOOKUP(G5,'Point Values'!$A:$B,2,FALSE) -> 0 | Q5: =VLOOKUP(H5,'Point Values'!$A:$B,2,FALSE) -> 84 | R5: =VLOOKUP(I5,'Point Values'!$A:$B,2,FALSE) -> 94 | S5: =VLOOKUP(J5,'Point Values'!$A:$B,2,FALSE) -> 100 | T5: =VLOOKUP(K5,'Point Values'!$A:$B,2,FALSE) -> 94 | U5: =VLOOKUP(L5,'Point Values'!$A:$B,2,FALSE) -> 94
A6: 4 | B6: 18 | C6: Truett Miranda | E6: 535 | F6: 5 | G6: 5 | H6: 4 | I6: 4 | J6: 4 | K6: 5 | L6: 6 | O6: 0 | P6: =VLOOKUP(G6,'Point Values'!$A:$B,2,FALSE) -> 88 | Q6: =VLOOKUP(H6,'Point Values'!$A:$B,2,FALSE) -> 91 | R6: =VLOOKUP(I6,'Point Values'!$A:$B,2,FALSE) -> 91 | S6: =VLOOKUP(J6,'Point Values'!$A:$B,2,FALSE) -> 91 | T6: =VLOOKUP(K6,'Point Values'!$A:$B,2,FALSE) -> 88 | U6: =VLOOKUP(L6,'Point Values'!$A:$B,2,FALSE) -> 86
A7: 5 | B7: 88 | C7: Sean Abell | E7: 443 | F7: . | G7: . | H7: 5 | I7: 5 | J7: 5 | K7: 4 | L7: 5 | O7: =VLOOKUP(F7,'Point Values'!$A:$B,2,FALSE) -> 0 | P7: =VLOOKUP(G7,'Point Values'!$A:$B,2,FALSE) -> 0 | Q7: =VLOOKUP(H7,'Point Values'!$A:$B,2,FALSE) -> 88 | R7: =VLOOKUP(I7,'Point Values'!$A:$B,2,FALSE) -> 88 | S7: =VLOOKUP(J7,'Point Values'!$A:$B,2,FALSE) -> 88 | T7: =VLOOKUP(K7,'Point Values'!$A:$B,2,FALSE) -> 91 | U7: =VLOOKUP(L7,'Point Values'!$A:$B,2,FALSE) -> 88
A8: 6 | B8: 4E | C8: Parker Eatmon | E8: 391 | F8: 3 | G8: 2 | H8: 1 | I8: 1 | J8: . | K8: . | L8: . | O8: =VLOOKUP(F8,'Point Values'!$A:$B,2,FALSE) -> 94 | P8: =VLOOKUP(G8,'Point Values'!$A:$B,2,FALSE) -> 97 | Q8: =VLOOKUP(H8,'Point Values'!$A:$B,2,FALSE) -> 100 | R8: =VLOOKUP(I8,'Point Values'!$A:$B,2,FALSE) -> 100 | S8: =VLOOKUP(J8,'Point Values'!$A:$B,2,FALSE) -> 0 | T8: =VLOOKUP(K8,'Point Values'!$A:$B,2,FALSE) -> 0 | U8: =VLOOKUP(L8,'Point Values'!$A:$B,2,FALSE) -> 0
A9: 7 | B9: 16 | C9: Stanley Hayes | E9: 265 | F9: 2 | G9: 6 | H9: 8 | I9: . | J9: . | K9: . | L9: . | O9: =VLOOKUP(F9,'Point Values'!$A:$B,2,FALSE) -> 97 | P9: =VLOOKUP(G9,'Point Values'!$A:$B,2,FALSE) -> 86 | Q9: =VLOOKUP(H9,'Point Values'!$A:$B,2,FALSE) -> 82 | R9: =VLOOKUP(I9,'Point Values'!$A:$B,2,FALSE) -> 0 | S9: =VLOOKUP(J9,'Point Values'!$A:$B,2,FALSE) -> 0 | T9: =VLOOKUP(K9,'Point Values'!$A:$B,2,FALSE) -> 0 | U9: =VLOOKUP(L9,'Point Values'!$A:$B,2,FALSE) -> 0
A10: 8 | B10: 32 | C10: Zach Miracle | E10: 200 | F10: 1 | G10: 1 | H10: . | I10: . | J10: . | K10: . | L10: . | O10: =VLOOKUP(F10,'Point Values'!$A:$B,2,FALSE) -> 100 | P10: =VLOOKUP(G10,'Point Values'!$A:$B,2,FALSE) -> 100 | Q10: =VLOOKUP(H10,'Point Values'!$A:$B,2,FALSE) -> 0 | R10: =VLOOKUP(I10,'Point Values'!$A:$B,2,FALSE) -> 0 | S10: =VLOOKUP(J10,'Point Values'!$A:$B,2,FALSE) -> 0 | T10: =VLOOKUP(K10,'Point Values'!$A:$B,2,FALSE) -> 0 | U10: =VLOOKUP(L10,'Point Values'!$A:$B,2,FALSE) -> 0
A11: 9 | B11: 42 | C11: Jacob Bradley | E11: 168 | F11: 6 | G11: 8 | H11: . | I11: . | J11: . | K11: . | L11: . | O11: =VLOOKUP(F11,'Point Values'!$A:$B,2,FALSE) -> 86 | P11: =VLOOKUP(G11,'Point Values'!$A:$B,2,FALSE) -> 82 | Q11: =VLOOKUP(H11,'Point Values'!$A:$B,2,FALSE) -> 0 | R11: =VLOOKUP(I11,'Point Values'!$A:$B,2,FALSE) -> 0 | S11: =VLOOKUP(J11,'Point Values'!$A:$B,2,FALSE) -> 0 | T11: =VLOOKUP(K11,'Point Values'!$A:$B,2,FALSE) -> 0 | U11: =VLOOKUP(L11,'Point Values'!$A:$B,2,FALSE) -> 0
A12: 10 | B12: 22 | C12: Wyatt Philyaw | E12: 164 | F12: 7 | G12: 9 | H12: . | I12: . | J12: . | K12: . | L12: . | O12: =VLOOKUP(F12,'Point Values'!$A:$B,2,FALSE) -> 84 | P12: =VLOOKUP(G12,'Point Values'!$A:$B,2,FALSE) -> 80 | Q12: =VLOOKUP(H12,'Point Values'!$A:$B,2,FALSE) -> 0 | R12: =VLOOKUP(I12,'Point Values'!$A:$B,2,FALSE) -> 0 | S12: =VLOOKUP(J12,'Point Values'!$A:$B,2,FALSE) -> 0 | T12: =VLOOKUP(K12,'Point Values'!$A:$B,2,FALSE) -> 0 | U12: =VLOOKUP(L12,'Point Values'!$A:$B,2,FALSE) -> 0
A13: 11 | B13: 44 | C13: Kaleb Bradley | E13: 162 | F13: 10 | G13: 7 | H13: . | I13: . | J13: . | K13: . | L13: . | O13: =VLOOKUP(F13,'Point Values'!$A:$B,2,FALSE) -> 78 | P13: =VLOOKUP(G13,'Point Values'!$A:$B,2,FALSE) -> 84 | Q13: =VLOOKUP(H13,'Point Values'!$A:$B,2,FALSE) -> 0 | R13: =VLOOKUP(I13,'Point Values'!$A:$B,2,FALSE) -> 0 | S13: =VLOOKUP(J13,'Point Values'!$A:$B,2,FALSE) -> 0 | T13: =VLOOKUP(K13,'Point Values'!$A:$B,2,FALSE) -> 0 | U13: =VLOOKUP(L13,'Point Values'!$A:$B,2,FALSE) -> 0
A14: 12 | B14: 9 | C14: Kade Brown | E14: 91 | F14: . | G14: . | H14: . | I14: . | J14: . | K14: . | L14: 4 | O14: =VLOOKUP(F14,'Point Values'!$A:$B,2,FALSE) -> 0 | P14: =VLOOKUP(G14,'Point Values'!$A:$B,2,FALSE) -> 0 | Q14: =VLOOKUP(H14,'Point Values'!$A:$B,2,FALSE) -> 0 | R14: =VLOOKUP(I14,'Point Values'!$A:$B,2,FALSE) -> 0 | S14: =VLOOKUP(J14,'Point Values'!$A:$B,2,FALSE) -> 0 | T14: =VLOOKUP(K14,'Point Values'!$A:$B,2,FALSE) -> 0 | U14: =VLOOKUP(L14,'Point Values'!$A:$B,2,FALSE) -> 91
A15: 13 | B15: 8 | C15: Taylor Griffin | E15: 86 | F15: . | G15: . | H15: 6 | I15: . | J15: . | K15: . | L15: . | O15: =VLOOKUP(F15,'Point Values'!$A:$B,2,FALSE) -> 0 | P15: =VLOOKUP(G15,'Point Values'!$A:$B,2,FALSE) -> 0 | Q15: =VLOOKUP(H15,'Point Values'!$A:$B,2,FALSE) -> 86 | R15: =VLOOKUP(I15,'Point Values'!$A:$B,2,FALSE) -> 0 | S15: =VLOOKUP(J15,'Point Values'!$A:$B,2,FALSE) -> 0 | T15: =VLOOKUP(K15,'Point Values'!$A:$B,2,FALSE) -> 0 | U15: =VLOOKUP(L15,'Point Values'!$A:$B,2,FALSE) -> 0
A16: 14
A17: 15
A18: 16
A19: 17
A20: 18
A21: 19
A22: 20
A23: *Ties will be broken by: 1) number of wins, 2) number of 2nd places, 3) number of third place finishes, etc., until the tie is broken).

Sheet Outlaws
A1: OUTLAW - 2018 WINTER HEAT POINTS
A2: CHAMPIONSHIP STANDING | B2: CAR NUMBER | C2: DRIVERS NAME | E2: TOTAL POINTS | F2: 2017-12-16 | G2: 2017-12-16 | H2: 2018-01-21 | I2: 2018-01-21 | J2: 2018-01-27 | K2: 2018-01-27 | L2: 2018-02-03 | M2: CANCELED | N2: 2018-02-03 | O2: 2017-12-16 | P2: 2017-12-17 | Q2: 2017-01-20 | R2: 2018-01-20 | S2: 2018-01-27 | T2: 2018-01-27 | U2: 2018-02-03 | V2: CANCELED
A3: 1 | B3: 6L | C3: Garrett Lowe | E3: =SUM(O3:U3) -> 588 | F3: 6 | G3: 4 | H3: 2 | I3: 1 | J3: 1 | K3: 1 | L3: 1 | O3: 0 | P3: =VLOOKUP(G3,'Point Values'!$A:$B,2,FALSE) -> 91 | Q3: =VLOOKUP(H3,'Point Values'!$A:$B,2,FALSE) -> 97 | R3: =VLOOKUP(I3,'Point Values'!$A:$B,2,FALSE) -> 100 | S3: =VLOOKUP(J3,'Point Values'!$A:$B,2,FALSE) -> 100 | T3: =VLOOKUP(K3,'Point Values'!$A:$B,2,FALSE) -> 100 | U3: =VLOOKUP(L3,'Point Values'!$A:$B,2,FALSE) -> 100
A4: 2 | B4: 9 | C4: Santiago Hill | E4: 545 | F4: 8 | G4: 2 | H4: 6 | I4: 6 | J4: 4 | K4: 4 | L4: 3 | O4: 0 | P4: =VLOOKUP(G4,'Point Values'!$A:$B,2,FALSE) -> 97 | Q4: =VLOOKUP(H4,'Point Values'!$A:$B,2,FALSE) -> 86 | R4: =VLOOKUP(I4,'Point Values'!$A:$B,2,FALSE) -> 86 | S4: =VLOOKUP(J4,'Point Values'!$A:$B,2,FALSE) -> 91 | T4: =VLOOKUP(K4,'Point Values'!$A:$B,2,FALSE) -> 91 | U4: =VLOOKUP(L4,'Point Values'!$A:$B,2,FALSE) -> 94
A5: 3 | B5: 04 | C5: Cameron Murray | E5: 528 | F5: 5 | G5: 5 | H5: 3 | I5: 5 | J5: 7 | K5: 12 | L5: 6 | O5: =VLOOKUP(F5,'Point Values'!$A:$B,2,FALSE) -> 88 | P5: =VLOOKUP(G5,'Point Values'!$A:$B,2,FALSE) -> 88 | Q5: =VLOOKUP(H5,'Point Values'!$A:$B,2,FALSE) -> 94 | R5: =VLOOKUP(I5,'Point Values'!$A:$B,2,FALSE) -> 88 | S5: =VLOOKUP(J5,'Point Values'!$A:$B,2,FALSE) -> 84 | T5: 0 | U5: =VLOOKUP(L5,'Point Values'!$A:$B,2,FALSE) -> 86
A6: 4 | B6: 24 | C6: Jaydn Daniels | E6: 524 | F6: 7 | G6: 7 | H6: 8 | I6: 4 | J6: 6 | K6: 9 | L6: 2 | O6: =VLOOKUP(F6,'Point Values'!$A:$B,2,FALSE) -> 84 | P6: =VLOOKUP(G6,'Point Values'!$A:$B,2,FALSE) -> 84 | Q6: =VLOOKUP(H6,'Point Values'!$A:$B,2,FALSE) -> 82 | R6: =VLOOKUP(I6,'Point Values'!$A:$B,2,FALSE) -> 91 | S6: =VLOOKUP(J6,'Point Values'!$A:$B,2,FALSE) -> 86 | T6: 0 | U6: =VLOOKUP(L6,'Point Values'!$A:$B,2,FALSE) -> 97
A7: 5 | B7: 8 | C7: Trevor Wester | E7: 521 | F7: 4 | G7: 13 | H7: 5 | I7: 8 | J7: 8 | K7: 3 | L7: 7 | O7: =VLOOKUP(F7,'Point Values'!$A:$B,2,FALSE) -> 91 | P7: 0 | Q7: =VLOOKUP(H7,'Point Values'!$A:$B,2,FALSE) -> 88 | R7: =VLOOKUP(I7,'Point Values'!$A:$B,2,FALSE) -> 82 | S7: =VLOOKUP(J7,'Point Values'!$A:$B,2,FALSE) -> 82 | T7: =VLOOKUP(K7,'Point Values'!$A:$B,2,FALSE) -> 94 | U7: =VLOOKUP(L7,'Point Values'!$A:$B,2,FALSE) -> 84
A8: 6 | B8: 77 | C8: Carson Ramsey | E8: 516 | F8: 1 | G8: 3 | H8: 11 | I8: 12 | J8: 5 | K8: 6 | L8: 13 | O8: =VLOOKUP(F8,'Point Values'!$A:$B,2,FALSE) -> 100 | P8: =VLOOKUP(G8,'Point Values'!$A:$B,2,FALSE) -> 94 | Q8: =VLOOKUP(H8,'Point Values'!$A:$B,2,FALSE) -> 76 | R8: 0 | S8: =VLOOKUP(J8,'Point Values'!$A:$B,2,FALSE) -> 88 | T8: =VLOOKUP(K8,'Point Values'!$A:$B,2,FALSE) -> 86 | U8: =VLOOKUP(L8,'Point Values'!$A:$B,2,FALSE) -> 72
A9: 7 | B9: 54 | C9: Josh Speas | E9: 501 | F9: 2 | G9: 6 | H9: 7 | I9: 10 | J9: 13 | K9: 8 | L9: 12 | O9: =VLOOKUP(F9,'Point Values'!$A:$B,2,FALSE) -> 97 | P9: =VLOOKUP(G9,'Point Values'!$A:$B,2,FALSE) -> 86 | Q9: =VLOOKUP(H9,'Point Values'!$A:$B,2,FALSE) -> 84 | R9: =VLOOKUP(I9,'Point Values'!$A:$B,2,FALSE) -> 78 | S9: 0 | T9: =VLOOKUP(K9,'Point Values'!$A:$B,2,FALSE) -> 82 | U9: =VLOOKUP(L9,'Point Values'!$A:$B,2,FALSE) -> 74
A10: 8 | B10: 15 | C10: Logan Clark | E10: 470 | F10: 10 | G10: 10 | H10: 13 | I10: 9 | J10: 11 | K10: 11 | L10: 8 | O10: =VLOOKUP(F10,'Point Values'!$A:$B,2,FALSE) -> 78 | P10: =VLOOKUP(G10,'Point Values'!$A:$B,2,FALSE) -> 78 | Q10: 0 | R10: =VLOOKUP(I10,'Point Values'!$A:$B,2,FALSE) -> 80 | S10: =VLOOKUP(J10,'Point Values'!$A:$B,2,FALSE) -> 76 | T10: =VLOOKUP(K10,'Point Values'!$A:$B,2,FALSE) -> 76 | U10: =VLOOKUP(L10,'Point Values'!$A:$B,2,FALSE) -> 82
A11: 9 | B11: 81 | C11: Caleb Williams | E11: 456 | F11: 11 | G11: . | H11: 9 | I11: 11 | J11: 14 | K11: 10 | L11: 11 | O11: =VLOOKUP(F11,'Point Values'!$A:$B,2,FALSE) -> 76 | P11: =VLOOKUP(G11,'Point Values'!$A:$B,2,FALSE) -> 0 | Q11: =VLOOKUP(H11,'Point Values'!$A:$B,2,FALSE) -> 80 | R11: =VLOOKUP(I11,'Point Values'!$A:$B,2,FALSE) -> 76 | S11: =VLOOKUP(J11,'Point Values'!$A:$B,2,FALSE) -> 70 | T11: =VLOOKUP(K11,'Point Values'!$A:$B,2,FALSE) -> 78 | U11: =VLOOKUP(L11,'Point Values'!$A:$B,2,FALSE) -> 76
A12: 10 | B12: 53 | C12: Justin Gareis | E12: 452 | F12: 3 | G12: 14 | H12: 14 | I12: 3 | J12: 2 | K12: 2 | L12: . | O12: =VLOOKUP(F12,'Point Values'!$A:$B,2,FALSE) -> 94 | P12: 0 | Q12: =VLOOKUP(H12,'Point Values'!$A:$B,2,FALSE) -> 70 | R12: =VLOOKUP(I12,'Point Values'!$A:$B,2,FALSE) -> 94 | S12: =VLOOKUP(J12,'Point Values'!$A:$B,2,FALSE) -> 97 | T12: =VLOOKUP(K12,'Point Values'!$A:$B,2,FALSE) -> 97 | U12: =VLOOKUP(L12,'Point Values'!$A:$B,2,FALSE) -> 0
A13: 11 | B13: 5 | C13: Zac Fowler | E13: 427 | F13: . | G13: . | H13: 4 | I13: 7 | J13: 9 | K13: 7 | L13: 5 | O13: =VLOOKUP(F13,'Point Values'!$A:$B,2,FALSE) -> 0 | P13: =VLOOKUP(G13,'Point Values'!$A:$B,2,FALSE) -> 0 | Q13: =VLOOKUP(H13,'Point Values'!$A:$B,2,FALSE) -> 91 | R13: =VLOOKUP(I13,'Point Values'!$A:$B,2,FALSE) -> 84 | S13: =VLOOKUP(J13,'Point Values'!$A:$B,2,FALSE) -> 80 | T13: =VLOOKUP(K13,'Point Values'!$A:$B,2,FALSE) -> 84 | U13: =VLOOKUP(L13,'Point Values'!$A:$B,2,FALSE) -> 88
A14: 12 | B14: 23 | C14: Emily Hedstrom | E14: 384 | F14: 12 | G14: 12 | H14: 10 | I14: . | J14: 10 | K14: . | L14: 9 | O14: =VLOOKUP(F14,'Point Values'!$A:$B,2,FALSE) -> 74 | P14: =VLOOKUP(G14,'Point Values'!$A:$B,2,FALSE) -> 74 | Q14: =VLOOKUP(H14,'Point Values'!$A:$B,2,FALSE) -> 78 | R14: =VLOOKUP(I14,'Point Values'!$A:$B,2,FALSE) -> 0 | S14: =VLOOKUP(J14,'Point Values'!$A:$B,2,FALSE) -> 78 | T14: =VLOOKUP(K14,'Point Values'!$A:$B,2,FALSE) -> 0 | U14: =VLOOKUP(L14,'Point Values'!$A:$B,2,FALSE) -> 80
A15: 13 | B15: 56 | C15: Ethan Norfleet | E15: 308 | F15: 9 | G15: 8 | H15: 12 | I15: 13 | J15: . | K15: . | L15: . | O15: =VLOOKUP(F15,'Point Values'!$A:$B,2,FALSE) -> 80 | P15: =VLOOKUP(G15,'Point Values'!$A:$B,2,FALSE) -> 82 | Q15: =VLOOKUP(H15,'Point Values'!$A:$B,2,FALSE) -> 74 | R15: =VLOOKUP(I15,'Point Values'!$A:$B,2,FALSE) -> 72 | S15: =VLOOKUP(J15,'Point Values'!$A:$B,2,FALSE) -> 0 | T15: =VLOOKUP(K15,'Point Values'!$A:$B,2,FALSE) -> 0 | U15: =VLOOKUP(L15,'Point Values'!$A:$B,2,FALSE) -> 0
A16: 14 | B16: 99 | C16: Eric Brown | E16: 273 | F16: . | G16: . | H16: . | I16: . | J16: 3 | K16: 5 | L16: 4 | O16: =VLOOKUP(F16,'Point Values'!$A:$B,2,FALSE) -> 0 | P16: =VLOOKUP(G16,'Point Values'!$A:$B,2,FALSE) -> 0 | Q16: =VLOOKUP(H16,'Point Values'!$A:$B,2,FALSE) -> 0 | R16: =VLOOKUP(I16,'Point Values'!$A:$B,2,FALSE) -> 0 | S16: =VLOOKUP(J16,'Point Values'!$A:$B,2,FALSE) -> 94 | T16: =VLOOKUP(K16,'Point Values'!$A:$B,2,FALSE) -> 88 | U16: =VLOOKUP(L16,'Point Values'!$A:$B,2,FALSE) -> 91
A17: 15 | B17: 99 | C17: Jake Tretow | E17: 197 | F17: . | G17: . | H17: 1 | I17: 2 | J17: . | K17: . | L17: . | O17: =VLOOKUP(F17,'Point Values'!$A:$B,2,FALSE) -> 0 | P17: =VLOOKUP(G17,'Point Values'!$A:$B,2,FALSE) -> 0 | Q17: =VLOOKUP(H17,'Point Values'!$A:$B,2,FALSE) -> 100 | R17: =VLOOKUP(I17,'Point Values'!$A:$B,2,FALSE) -> 97 | S17: =VLOOKUP(J17,'Point Values'!$A:$B,2,FALSE) -> 0 | T17: =VLOOKUP(K17,'Point Values'!$A:$B,2,FALSE) -> 0 | U17: =VLOOKUP(L17,'Point Values'!$A:$B,2,FALSE) -> 0
A18: 16 | B18: 12 | C18: Garin Mash | E18: 172 | F18: 13 | G18: 1 | H18: . | I18: . | J18: . | K18: . | L18: . | O18: =VLOOKUP(F18,'Point Values'!$A:$B,2,FALSE) -> 72 | P18: =VLOOKUP(G18,'Point Values'!$A:$B,2,FALSE) -> 100 | Q18: =VLOOKUP(H18,'Point Values'!$A:$B,2,FALSE) -> 0 | R18: =VLOOKUP(I18,'Point Values'!$A:$B,2,FALSE) -> 0 | S18: =VLOOKUP(J18,'Point Values'!$A:$B,2,FALSE) -> 0 | T18: =VLOOKUP(K18,'Point Values'!$A:$B,2,FALSE) -> 0 | U18: =VLOOKUP(L18,'Point Values'!$A:$B,2,FALSE) -> 0
A19: 17 | B19: 17X | C19: Parker Frazier | E19: 152 | F19: . | G19: . | H19: . | I19: . | J19: 12 | K19: . | L19: 10 | O19: =VLOOKUP(F19,'Point Values'!$A:$B,2,FALSE) -> 0 | P19: =VLOOKUP(G19,'Point Values'!$A:$B,2,FALSE) -> 0 | Q19: =VLOOKUP(H19,'Point Values'!$A:$B,2,FALSE) -> 0 | R19: =VLOOKUP(I19,'Point Values'!$A:$B,2,FALSE) -> 0 | S19: =VLOOKUP(J19,'Point Values'!$A:$B,2,FALSE) -> 74 | T19: =VLOOKUP(K19,'Point Values'!$A:$B,2,FALSE) -> 0 | U19: =VLOOKUP(L19,'Point Values'!$A:$B,2,FALSE) -> 78
A20: 18 | B20: 7 | C20: Ben Johnson | E20: 146 | F20: 14 | G20: 11 | H20: . | I20: . | J20: . | K20: . | L20: . | O20: =VLOOKUP(F20,'Point Values'!$A:$B,2,FALSE) -> 70 | P20: =VLOOKUP(G20,'Point Values'!$A:$B,2,FALSE) -> 76 | Q20: =VLOOKUP(H20,'Point Values'!$A:$B,2,FALSE) -> 0 | R20: =VLOOKUP(I20,'Point Values'!$A:$B,2,FALSE) -> 0 | S20: =VLOOKUP(J20,'Point Values'!$A:$B,2,FALSE) -> 0 | T20: =VLOOKUP(K20,'Point Values'!$A:$B,2,FALSE) -> 0 | U20: =VLOOKUP(L20,'Point Values'!$A:$B,2,FALSE) -> 0
A21: 19 | B21: 51 | C21: Ethan Johnson | E21: 80 | F21: . | G21: 9 | H21: . | I21: . | J21: . | K21: . | L21: . | O21: =VLOOKUP(F21,'Point Values'!$A:$B,2,FALSE) -> 0 | P21: =VLOOKUP(G21,'Point Values'!$A:$B,2,FALSE) -> 80 | Q21: =VLOOKUP(H21,'Point Values'!$A:$B,2,FALSE) -> 0 | R21: =VLOOKUP(I21,'Point Values'!$A:$B,2,FALSE) -> 0 | S21: =VLOOKUP(J21,'Point Values'!$A:$B,2,FALSE) -> 0 | T21: =VLOOKUP(K21,'Point Values'!$A:$B,2,FALSE) -> 0 | U21: =VLOOKUP(L21,'Point Values'!$A:$B,2,FALSE) -> 0
A22: 20
A23: *Ties will be broken by: 1) number of wins, 2) number of 2nd places, 3) number of third place finishes, etc., until the tie is broken).

Sheet Young Lions
A1: YOUNG LION - 2018 WINTER HEAT POINTS
A2: CHAMPIONSHIP STANDING | B2: CAR NUMBER | C2: DRIVERS NAME | E2: TOTAL POINTS | F2: 2017-12-16 | G2: 2017-12-17 | H2: 2017-01-13 | I2: 2018-01-13 | J2: 2018-01-20 | K2: 2018-01-20 | L2: 2018-01-27 | M2: 2018-02-03 | O2: 2017-12-16 | P2: 2017-12-17 | Q2: 2017-01-13 | R2: 2018-01-13 | S2: 2018-01-20 | T2: 2018-01-20 | U2: 2018-01-27 | V2: 2018-02-03
A3: 1 | B3: 6 | C3: Isaak Love | E3: =SUM(O3:V3) -> 682 | F3: 1 | G3: 5 | H3: 6 | I3: 1 | J3: 3 | K3: 1 | L3: 1 | M3: 1 | O3: =VLOOKUP(F3,'Point Values'!$A:$B,2,FALSE) -> 100 | P3: =VLOOKUP(G3,'Point Values'!$A:$B,2,FALSE) -> 88 | Q3: 0 | R3: =VLOOKUP(I3,'Point Values'!$A:$B,2,FALSE) -> 100 | S3: =VLOOKUP(J3,'Point Values'!$A:$B,2,FALSE) -> 94 | T3: =VLOOKUP(K3,'Point Values'!$A:$B,2,FALSE) -> 100 | U3: =VLOOKUP(L3,'Point Values'!$A:$B,2,FALSE) -> 100 | V3: =VLOOKUP(M3,'Point Values'!$A:$B,2,FALSE) -> 100
A4: 2 | B4: 52 | C4: Jak Crawford | E4: 673 | F4: 2 | G4: 3 | H4: 2 | I4: 3 | J4: 1 | K4: 3 | L4: 3 | M4: 2 | O4: =VLOOKUP(F4,'Point Values'!$A:$B,2,FALSE) -> 97 | P4: 0 | Q4: =VLOOKUP(H4,'Point Values'!$A:$B,2,FALSE) -> 97 | R4: =VLOOKUP(I4,'Point Values'!$A:$B,2,FALSE) -> 94 | S4: =VLOOKUP(J4,'Point Values'!$A:$B,2,FALSE) -> 100 | T4: =VLOOKUP(K4,'Point Values'!$A:$B,2,FALSE) -> 94 | U4: =VLOOKUP(L4,'Point Values'!$A:$B,2,FALSE) -> 94 | V4: =VLOOKUP(M4,'Point Values'!$A:$B,2,FALSE) -> 97
A5: 3 | B5: 22 | C5: Will Robusto | E5: 561 | F5: 5 | G5: 4 | H5: 1 | I5: 2 | J5: 4 | K5: 4 | L5: 4 | M5: . | O5: 0 | P5: =VLOOKUP(G5,'Point Values'!$A:$B,2,FALSE) -> 91 | Q5: =VLOOKUP(H5,'Point Values'!$A:$B,2,FALSE) -> 100 | R5: =VLOOKUP(I5,'Point Values'!$A:$B,2,FALSE) -> 97 | S5: =VLOOKUP(J5,'Point Values'!$A:$B,2,FALSE) -> 91 | T5: =VLOOKUP(K5,'Point Values'!$A:$B,2,FALSE) -> 91 | U5: =VLOOKUP(L5,'Point Values'!$A:$B,2,FALSE) -> 91 | V5: =VLOOKUP(M5,'Point Values'!$A:$B,2,FALSE) -> 0
A6: 4 | B6: 4 | C6: Leland Honeyman | E6: 557 | F6: 13 | G6: 1 | H6: . | I6: . | J6: 2 | K6: 2 | L6: 2 | M6: 3 | O6: =VLOOKUP(F6,'Point Values'!$A:$B,2,FALSE) -> 72 | P6: =VLOOKUP(G6,'Point Values'!$A:$B,2,FALSE) -> 100 | Q6: =VLOOKUP(H6,'Point Values'!$A:$B,2,FALSE) -> 0 | R6: =VLOOKUP(I6,'Point Values'!$A:$B,2,FALSE) -> 0 | S6: =VLOOKUP(J6,'Point Values'!$A:$B,2,FALSE) -> 97 | T6: =VLOOKUP(K6,'Point Values'!$A:$B,2,FALSE) -> 97 | U6: =VLOOKUP(L6,'Point Values'!$A:$B,2,FALSE) -> 97 | V6: =VLOOKUP(M6,'Point Values'!$A:$B,2,FALSE) -> 94
A7: 5 | B7: 55 | C7: Isabella Robusto | E7: 530 | F7: 6 | G7: . | H7: 3 | I7: 5 | J7: 5 | K7: 6 | L7: 5 | M7: . | O7: =VLOOKUP(F7,'Point Values'!$A:$B,2,FALSE) -> 86 | P7: =VLOOKUP(G7,'Point Values'!$A:$B,2,FALSE) -> 0 | Q7: =VLOOKUP(H7,'Point Values'!$A:$B,2,FALSE) -> 94 | R7: =VLOOKUP(I7,'Point Values'!$A:$B,2,FALSE) -> 88 | S7: =VLOOKUP(J7,'Point Values'!$A:$B,2,FALSE) -> 88 | T7: =VLOOKUP(K7,'Point Values'!$A:$B,2,FALSE) -> 86 | U7: =VLOOKUP(L7,'Point Values'!$A:$B,2,FALSE) -> 88 | V7: =VLOOKUP(M7,'Point Values'!$A:$B,2,FALSE) -> 0
A8: 6 | B8: 21T | C8: Tristan Borkoski | E8: 498 | F8: 12 | G8: 7 | H8: 9 | I8: 6 | J8: 6 | K8: 5 | L8: . | M8: . | O8: =VLOOKUP(F8,'Point Values'!$A:$B,2,FALSE) -> 74 | P8: =VLOOKUP(G8,'Point Values'!$A:$B,2,FALSE) -> 84 | Q8: =VLOOKUP(H8,'Point Values'!$A:$B,2,FALSE) -> 80 | R8: =VLOOKUP(I8,'Point Values'!$A:$B,2,FALSE) -> 86 | S8: =VLOOKUP(J8,'Point Values'!$A:$B,2,FALSE) -> 86 | T8: =VLOOKUP(K8,'Point Values'!$A:$B,2,FALSE) -> 88 | U8: =VLOOKUP(L8,'Point Values'!$A:$B,2,FALSE) -> 0 | V8: =VLOOKUP(M8,'Point Values'!$A:$B,2,FALSE) -> 0
A9: 7 | B9: 77 | C9: Jason Alder | E9: 497 | F9: 7 | G9: 11 | H9: 8 | I9: 4 | J9: 8 | K9: 8 | L9: . | M9: . | O9: =VLOOKUP(F9,'Point Values'!$A:$B,2,FALSE) -> 84 | P9: =VLOOKUP(G9,'Point Values'!$A:$B,2,FALSE) -> 76 | Q9: =VLOOKUP(H9,'Point Values'!$A:$B,2,FALSE) -> 82 | R9: =VLOOKUP(I9,'Point Values'!$A:$B,2,FALSE) -> 91 | S9: =VLOOKUP(J9,'Point Values'!$A:$B,2,FALSE) -> 82 | T9: =VLOOKUP(K9,'Point Values'!$A:$B,2,FALSE) -> 82 | U9: =VLOOKUP(L9,'Point Values'!$A:$B,2,FALSE) -> 0 | V9: =VLOOKUP(M9,'Point Values'!$A:$B,2,FALSE) -> 0
A10: 8 | B10: 24 | C10: Bryson Ruff | E10: 491 | F10: 10 | G10: 12 | H10: 4 | I10: 9 | J10: 7 | K10: 7 | L10: . | M10: . | O10: =VLOOKUP(F10,'Point Values'!$A:$B,2,FALSE) -> 78 | P10: =VLOOKUP(G10,'Point Values'!$A:$B,2,FALSE) -> 74 | Q10: =VLOOKUP(H10,'Point Values'!$A:$B,2,FALSE) -> 91 | R10: =VLOOKUP(I10,'Point Values'!$A:$B,2,FALSE) -> 80 | S10: =VLOOKUP(J10,'Point Values'!$A:$B,2,FALSE) -> 84 | T10: =VLOOKUP(K10,'Point Values'!$A:$B,2,FALSE) -> 84 | U10: =VLOOKUP(L10,'Point Values'!$A:$B,2,FALSE) -> 0 | V10: =VLOOKUP(M10,'Point Values'!$A:$B,2,FALSE) -> 0
A11: 9 | B11: 11 | C11: David Sullivan | E11: 407 | F11: 14 | G11: 9 | H11: 7 | I11: 8 | J11: . | K11: . | L11: . | M11: 4 | O11: =VLOOKUP(F11,'Point Values'!$A:$B,2,FALSE) -> 70 | P11: =VLOOKUP(G11,'Point Values'!$A:$B,2,FALSE) -> 80 | Q11: =VLOOKUP(H11,'Point Values'!$A:$B,2,FALSE) -> 84 | R11: =VLOOKUP(I11,'Point Values'!$A:$B,2,FALSE) -> 82 | S11: =VLOOKUP(J11,'Point Values'!$A:$B,2,FALSE) -> 0 | T11: =VLOOKUP(K11,'Point Values'!$A:$B,2,FALSE) -> 0 | U11: =VLOOKUP(L11,'Point Values'!$A:$B,2,FALSE) -> 0 | V11: =VLOOKUP(M11,'Point Values'!$A:$B,2,FALSE) -> 91
A12: 10 | B12: 17 | C12: George Hayes | E12: 177 | F12: 9 | G12: 2 | H12: . | I12: . | J12: . | K12: . | L12: . | M12: . | O12: =VLOOKUP(F12,'Point Values'!$A:$B,2,FALSE) -> 80 | P12: =VLOOKUP(G12,'Point Values'!$A:$B,2,FALSE) -> 97 | Q12: =VLOOKUP(H12,'Point Values'!$A:$B,2,FALSE) -> 0 | R12: =VLOOKUP(I12,'Point Values'!$A:$B,2,FALSE) -> 0 | S12: =VLOOKUP(J12,'Point Values'!$A:$B,2,FALSE) -> 0 | T12: =VLOOKUP(K12,'Point Values'!$A:$B,2,FALSE) -> 0 | U12: =VLOOKUP(L12,'Point Values'!$A:$B,2,FALSE) -> 0 | V12: =VLOOKUP(M12,'Point Values'!$A:$B,2,FALSE) -> 0
A13: 11 | B13: 99 | C13: Clay Thompson | E13: 172 | F13: 3 | G13: 10 | H13: . | I13: . | J13: . | K13: . | L13: . | M13: . | O13: =VLOOKUP(F13,'Point Values'!$A:$B,2,FALSE) -> 94 | P13: =VLOOKUP(G13,'Point Values'!$A:$B,2,FALSE) -> 78 | Q13: =VLOOKUP(H13,'Point Values'!$A:$B,2,FALSE) -> 0 | R13: =VLOOKUP(I13,'Point Values'!$A:$B,2,FALSE) -> 0 | S13: =VLOOKUP(J13,'Point Values'!$A:$B,2,FALSE) -> 0 | T13: =VLOOKUP(K13,'Point Values'!$A:$B,2,FALSE) -> 0 | U13: =VLOOKUP(L13,'Point Values'!$A:$B,2,FALSE) -> 0 | V13: =VLOOKUP(M13,'Point Values'!$A:$B,2,FALSE) -> 0
A14: 12 | B14: 2 | C14: Trent Dockery | E14: 172 | F14: . | G14: . | H14: 5 | I14: 7 | J14: . | K14: . | L14: . | M14: . | O14: =VLOOKUP(F14,'Point Values'!$A:$B,2,FALSE) -> 0 | P14: =VLOOKUP(G14,'Point Values'!$A:$B,2,FALSE) -> 0 | Q14: =VLOOKUP(H14,'Point Values'!$A:$B,2,FALSE) -> 88 | R14: =VLOOKUP(I14,'Point Values'!$A:$B,2,FALSE) -> 84 | S14: =VLOOKUP(J14,'Point Values'!$A:$B,2,FALSE) -> 0 | T14: =VLOOKUP(K14,'Point Values'!$A:$B,2,FALSE) -> 0 | U14: =VLOOKUP(L14,'Point Values'!$A:$B,2,FALSE) -> 0 | V14: =VLOOKUP(M14,'Point Values'!$A:$B,2,FALSE) -> 0
A15: 13 | B15: 10 | C15: Janson Marchbanks | E15: 168 | F15: 8 | G15: 6 | H15: . | I15: . | J15: . | K15: . | L15: . | M15: . | O15: =VLOOKUP(F15,'Point Values'!$A:$B,2,FALSE) -> 82 | P15: =VLOOKUP(G15,'Point Values'!$A:$B,2,FALSE) -> 86 | Q15: =VLOOKUP(H15,'Point Values'!$A:$B,2,FALSE) -> 0 | R15: =VLOOKUP(I15,'Point Values'!$A:$B,2,FALSE) -> 0 | S15: =VLOOKUP(J15,'Point Values'!$A:$B,2,FALSE) -> 0 | T15: =VLOOKUP(K15,'Point Values'!$A:$B,2,FALSE) -> 0 | U15: =VLOOKUP(L15,'Point Values'!$A:$B,2,FALSE) -> 0 | V15: =VLOOKUP(M15,'Point Values'!$A:$B,2,FALSE) -> 0
A16: 14 | B16: 8 | C16: Tommy Good | E16: 158 | F16: 11 | G16: 8 | H16: . | I16: . | J16: . | K16: . | L16: . | M16: . | O16: =VLOOKUP(F16,'Point Values'!$A:$B,2,FALSE) -> 76 | P16: =VLOOKUP(G16,'Point Values'!$A:$B,2,FALSE) -> 82 | Q16: =VLOOKUP(H16,'Point Values'!$A:$B,2,FALSE) -> 0 | R16: =VLOOKUP(I16,'Point Values'!$A:$B,2,FALSE) -> 0 | S16: =VLOOKUP(J16,'Point Values'!$A:$B,2,FALSE) -> 0 | T16: =VLOOKUP(K16,'Point Values'!$A:$B,2,FALSE) -> 0 | U16: =VLOOKUP(L16,'Point Values'!$A:$B,2,FALSE) -> 0 | V16: =VLOOKUP(M16,'Point Values'!$A:$B,2,FALSE) -> 0
A17: 15 | B17: 56 | C17: Derrick Debbis | E17: 91 | F17: 4 | G17: DQ | H17: . | I17: . | J17: . | K17: . | L17: . | M17: . | O17: =VLOOKUP(F17,'Point Values'!$A:$B,2,FALSE) -> 91 | P17: =VLOOKUP(G17,'Point Values'!$A:$B,2,FALSE) -> 0 | Q17: =VLOOKUP(H17,'Point Values'!$A:$B,2,FALSE) -> 0 | R17: =VLOOKUP(I17,'Point Values'!$A:$B,2,FALSE) -> 0 | S17: =VLOOKUP(J17,'Point Values'!$A:$B,2,FALSE) -> 0 | T17: =VLOOKUP(K17,'Point Values'!$A:$B,2,FALSE) -> 0 | U17: =VLOOKUP(L17,'Point Values'!$A:$B,2,FALSE) -> 0 | V17: =VLOOKUP(M17,'Point Values'!$A:$B,2,FALSE) -> 0
A18: 16 | B18: 8M | C18: Matt Gaudreau | E18: 86 | F18: . | G18: . | H18: . | I18: . | J18: . | K18: . | L18: 6 | M18: . | O18: =VLOOKUP(F18,'Point Values'!$A:$B,2,FALSE) -> 0 | P18: =VLOOKUP(G18,'Point Values'!$A:$B,2,FALSE) -> 0 | Q18: =VLOOKUP(H18,'Point Values'!$A:$B,2,FALSE) -> 0 | R18: =VLOOKUP(I18,'Point Values'!$A:$B,2,FALSE) -> 0 | S18: =VLOOKUP(J18,'Point Values'!$A:$B,2,FALSE) -> 0 | T18: =VLOOKUP(K18,'Point Values'!$A:$B,2,FALSE) -> 0 | U18: =VLOOKUP(L18,'Point Values'!$A:$B,2,FALSE) -> 86 | V18: =VLOOKUP(M18,'Point Values'!$A:$B,2,FALSE) -> 0
A19: 17
A20: 18
A21: 19
A22: 20
A23: 21
A24: 22
A25: 23
A26: 24
A27: 25
A28: *Ties will be broken by: 1) number of wins, 2) number of 2nd places, 3) number of third place finishes, etc., until the tie is broken).

Sheet Semi Pro
A1: SEMI PRO - 2018 WINTER HEAT POINTS
A2: CHAMPIONSHIP STANDING | B2: CAR NUMBER | C2: DRIVERS NAME | E2: TOTAL POINTS | F2: 2017-12-16 | G2: 2017-12-17 | H2: 2017-01-13 | I2: 2018-01-13 | J2: 2018-01-20 | K2: 2018-01-20 | L2: 2018-01-27 | M2: 2018-02-03 | O2: 2017-12-16 | P2: 2017-12-17 | Q2: 2017-01-13 | R2: 2018-01-13 | S2: 2018-01-20 | T2: 2018-01-20 | U2: 2018-01-27 | V2: 2018-02-03
A3: 1 | B3: 14 | C3: Vincent Midas | E3: =SUM(O3:V3) -> 673 | F3: 2 | G3: 3 | H3: 1 | I3: 3 | J3: 4 | K3: 13 | L3: 2 | M3: 1 | O3: =VLOOKUP(F3,'Point Values'!$A:$B,2,FALSE) -> 97 | P3: =VLOOKUP(G3,'Point Values'!$A:$B,2,FALSE) -> 94 | Q3: =VLOOKUP(H3,'Point Values'!$A:$B,2,FALSE) -> 100 | R3: =VLOOKUP(I3,'Point Values'!$A:$B,2,FALSE) -> 94 | S3: =VLOOKUP(J3,'Point Values'!$A:$B,2,FALSE) -> 91 | T3: 0 | U3: =VLOOKUP(L3,'Point Values'!$A:$B,2,FALSE) -> 97 | V3: =VLOOKUP(M3,'Point Values'!$A:$B,2,FALSE) -> 100
A4: 2 | B4: 12S | C4: Sammy Smith | E4: 670 | F4: 8 | G4: 1 | H4: 15 | I4: 2 | J4: 3 | K4: 1 | L4: 1 | M4: 2 | O4: =VLOOKUP(F4,'Point Values'!$A:$B,2,FALSE) -> 82 | P4: =VLOOKUP(G4,'Point Values'!$A:$B,2,FALSE) -> 100 | Q4: 0 | R4: =VLOOKUP(I4,'Point Values'!$A:$B,2,FALSE) -> 97 | S4: =VLOOKUP(J4,'Point Values'!$A:$B,2,FALSE) -> 94 | T4: =VLOOKUP(K4,'Point Values'!$A:$B,2,FALSE) -> 100 | U4: =VLOOKUP(L4,'Point Values'!$A:$B,2,FALSE) -> 100 | V4: =VLOOKUP(M4,'Point Values'!$A:$B,2,FALSE) -> 97
A5: 3 | B5: 22 | C5: Carter Weedon | E5: 661 | F5: 22 | G5: 8 | H5: 2 | I5: 1 | J5: 1 | K5: 2 | L5: 3 | M5: 4 | O5: 0 | P5: =VLOOKUP(G5,'Point Values'!$A:$B,2,FALSE) -> 82 | Q5: =VLOOKUP(H5,'Point Values'!$A:$B,2,FALSE) -> 97 | R5: =VLOOKUP(I5,'Point Values'!$A:$B,2,FALSE) -> 100 | S5: =VLOOKUP(J5,'Point Values'!$A:$B,2,FALSE) -> 100 | T5: =VLOOKUP(K5,'Point Values'!$A:$B,2,FALSE) -> 97 | U5: =VLOOKUP(L5,'Point Values'!$A:$B,2,FALSE) -> 94 | V5: =VLOOKUP(M5,'Point Values'!$A:$B,2,FALSE) -> 91
A6: 4 | B6: 18H | C6: Ryan Heim | E6: 629 | F6: 1 | G6: 6 | H6: 5 | I6: 6 | J6: . | K6: 4 | L6: 7 | M6: 3 | O6: =VLOOKUP(F6,'Point Values'!$A:$B,2,FALSE) -> 100 | P6: =VLOOKUP(G6,'Point Values'!$A:$B,2,FALSE) -> 86 | Q6: =VLOOKUP(H6,'Point Values'!$A:$B,2,FALSE) -> 88 | R6: =VLOOKUP(I6,'Point Values'!$A:$B,2,FALSE) -> 86 | S6: =VLOOKUP(J6,'Point Values'!$A:$B,2,FALSE) -> 0 | T6: =VLOOKUP(K6,'Point Values'!$A:$B,2,FALSE) -> 91 | U6: =VLOOKUP(L6,'Point Values'!$A:$B,2,FALSE) -> 84 | V6: =VLOOKUP(M6,'Point Values'!$A:$B,2,FALSE) -> 94
A7: 5 | B7: 27 | C7: Glenn Korner | E7: 613 | F7: 10 | G7: 7 | H7: 3 | I7: 4 | J7: 5 | K7: 3 | L7: 9 | M7: 8 | O7: 0 | P7: =VLOOKUP(G7,'Point Values'!$A:$B,2,FALSE) -> 84 | Q7: =VLOOKUP(H7,'Point Values'!$A:$B,2,FALSE) -> 94 | R7: =VLOOKUP(I7,'Point Values'!$A:$B,2,FALSE) -> 91 | S7: =VLOOKUP(J7,'Point Values'!$A:$B,2,FALSE) -> 88 | T7: =VLOOKUP(K7,'Point Values'!$A:$B,2,FALSE) -> 94 | U7: =VLOOKUP(L7,'Point Values'!$A:$B,2,FALSE) -> 80 | V7: =VLOOKUP(M7,'Point Values'!$A:$B,2,FALSE) -> 82
A8: 6 | B8: 08B | C8: Craig Biryla | E8: 587 | F8: 5 | G8: . | H8: 4 | I8: 7 | J8: 6 | K8: 12 | L8: 10 | M8: 6 | O8: =VLOOKUP(F8,'Point Values'!$A:$B,2,FALSE) -> 88 | P8: =VLOOKUP(G8,'Point Values'!$A:$B,2,FALSE) -> 0 | Q8: =VLOOKUP(H8,'Point Values'!$A:$B,2,FALSE) -> 91 | R8: =VLOOKUP(I8,'Point Values'!$A:$B,2,FALSE) -> 84 | S8: =VLOOKUP(J8,'Point Values'!$A:$B,2,FALSE) -> 86 | T8: =VLOOKUP(K8,'Point Values'!$A:$B,2,FALSE) -> 74 | U8: =VLOOKUP(L8,'Point Values'!$A:$B,2,FALSE) -> 78 | V8: =VLOOKUP(M8,'Point Values'!$A:$B,2,FALSE) -> 86
A9: 7 | B9: 11 | C9: Gracie Trotter | E9: 564 | F9: 9 | G9: 14 | H9: 12 | I9: 10 | J9: 9 | K9: 10 | L9: 6 | M9: 5 | O9: =VLOOKUP(F9,'Point Values'!$A:$B,2,FALSE) -> 80 | P9: 0 | Q9: =VLOOKUP(H9,'Point Values'!$A:$B,2,FALSE) -> 74 | R9: =VLOOKUP(I9,'Point Values'!$A:$B,2,FALSE) -> 78 | S9: =VLOOKUP(J9,'Point Values'!$A:$B,2,FALSE) -> 80 | T9: =VLOOKUP(K9,'Point Values'!$A:$B,2,FALSE) -> 78 | U9: =VLOOKUP(L9,'Point Values'!$A:$B,2,FALSE) -> 86 | V9: =VLOOKUP(M9,'Point Values'!$A:$B,2,FALSE) -> 88
A10: 8 | B10: 01 | C10: Cole Dockery | E10: 558 | F10: 7 | G10: 10 | H10: 7 | I10: 8 | J10: 10 | K10: 16 | L10: 13 | M10: 9 | O10: =VLOOKUP(F10,'Point Values'!$A:$B,2,FALSE) -> 84 | P10: =VLOOKUP(G10,'Point Values'!$A:$B,2,FALSE) -> 78 | Q10: =VLOOKUP(H10,'Point Values'!$A:$B,2,FALSE) -> 84 | R10: =VLOOKUP(I10,'Point Values'!$A:$B,2,FALSE) -> 82 | S10: =VLOOKUP(J10,'Point Values'!$A:$B,2,FALSE) -> 78 | T10: 0 | U10: =VLOOKUP(L10,'Point Values'!$A:$B,2,FALSE) -> 72 | V10: =VLOOKUP(M10,'Point Values'!$A:$B,2,FALSE) -> 80
A11: 9 | B11: 12 | C11: Mitchell Hedstrom | E11: 554 | F11: 12 | G11: 11 | H11: 9 | I11: 11 | J11: 15 | K11: 11 | L11: 5 | M11: 7 | O11: =VLOOKUP(F11,'Point Values'!$A:$B,2,FALSE) -> 74 | P11: =VLOOKUP(G11,'Point Values'!$A:$B,2,FALSE) -> 76 | Q11: =VLOOKUP(H11,'Point Values'!$A:$B,2,FALSE) -> 80 | R11: =VLOOKUP(I11,'Point Values'!$A:$B,2,FALSE) -> 76 | S11: 0 | T11: =VLOOKUP(K11,'Point Values'!$A:$B,2,FALSE) -> 76 | U11: =VLOOKUP(L11,'Point Values'!$A:$B,2,FALSE) -> 88 | V11: =VLOOKUP(M11,'Point Values'!$A:$B,2,FALSE) -> 84
A12: 10 | B12: 1 | C12: Tony Mangini | E12: 541 | F12: 15 | G12: 5 | H12: 16 | I12: 9 | J12: 7 | K12: 6 | L12: 17 | M12: 15 | O12: =VLOOKUP(F12,'Point Values'!$A:$B,2,FALSE) -> 68 | P12: =VLOOKUP(G12,'Point Values'!$A:$B,2,FALSE) -> 88 | Q12: =VLOOKUP(H12,'Point Values'!$A:$B,2,FALSE) -> 67 | R12: =VLOOKUP(I12,'Point Values'!$A:$B,2,FALSE) -> 80 | S12: =VLOOKUP(J12,'Point Values'!$A:$B,2,FALSE) -> 84 | T12: =VLOOKUP(K12,'Point Values'!$A:$B,2,FALSE) -> 86 | U12: 0 | V12: =VLOOKUP(M12,'Point Values'!$A:$B,2,FALSE) -> 68
A13: 11 | B13: 18M | C13: Connor Mosack | E13: 523 | F13: 3 | G13: 4 | H13: 18 | I13: 5 | J13: 2 | K13: 5 | L13: . | M13: . | O13: =VLOOKUP(F13,'Point Values'!$A:$B,2,FALSE) -> 94 | P13: =VLOOKUP(G13,'Point Values'!$A:$B,2,FALSE) -> 91 | Q13: =VLOOKUP(H13,'Point Values'!$A:$B,2,FALSE) -> 65 | R13: =VLOOKUP(I13,'Point Values'!$A:$B,2,FALSE) -> 88 | S13: =VLOOKUP(J13,'Point Values'!$A:$B,2,FALSE) -> 97 | T13: =VLOOKUP(K13,'Point Values'!$A:$B,2,FALSE) -> 88 | U13: =VLOOKUP(L13,'Point Values'!$A:$B,2,FALSE) -> 0 | V13: =VLOOKUP(M13,'Point Values'!$A:$B,2,FALSE) -> 0
A14: 12 | B14: 6 | C14: Tristan Love | E14: 466 | F14: . | G14: . | H14: 8 | I14: 16 | J14: 7 | K14: 7 | L14: 8 | M14: 16 | O14: =VLOOKUP(F14,'Point Values'!$A:$B,2,FALSE) -> 0 | P14: =VLOOKUP(G14,'Point Values'!$A:$B,2,FALSE) -> 0 | Q14: =VLOOKUP(H14,'Point Values'!$A:$B,2,FALSE) -> 82 | R14: =VLOOKUP(I14,'Point Values'!$A:$B,2,FALSE) -> 67 | S14: =VLOOKUP(J14,'Point Values'!$A:$B,2,FALSE) -> 84 | T14: =VLOOKUP(K14,'Point Values'!$A:$B,2,FALSE) -> 84 | U14: =VLOOKUP(L14,'Point Values'!$A:$B,2,FALSE) -> 82 | V14: =VLOOKUP(M14,'Point Values'!$A:$B,2,FALSE) -> 67
A15: 13 | B15: 49 | C15: Carson Poindexter | E15: 442 | F15: . | G15: . | H15: 10 | I15: 12 | J15: 13 | K15: 15 | L15: 12 | M15: 11 | O15: =VLOOKUP(F15,'Point Values'!$A:$B,2,FALSE) -> 0 | P15: =VLOOKUP(G15,'Point Values'!$A:$B,2,FALSE) -> 0 | Q15: =VLOOKUP(H15,'Point Values'!$A:$B,2,FALSE) -> 78 | R15: =VLOOKUP(I15,'Point Values'!$A:$B,2,FALSE) -> 74 | S15: =VLOOKUP(J15,'Point Values'!$A:$B,2,FALSE) -> 72 | T15: =VLOOKUP(K15,'Point Values'!$A:$B,2,FALSE) -> 68 | U15: =VLOOKUP(L15,'Point Values'!$A:$B,2,FALSE) -> 74 | V15: =VLOOKUP(M15,'Point Values'!$A:$B,2,FALSE) -> 76
A16: 14 | B16: 13 | C16: Wes Burton | E16: 383 | F16: 6 | G16: . | H16: 6 | I16: . | J16: 11 | K16: 14 | L16: 18 | M16: . | O16: =VLOOKUP(F16,'Point Values'!$A:$B,2,FALSE) -> 86 | P16: =VLOOKUP(G16,'Point Values'!$A:$B,2,FALSE) -> 0 | Q16: =VLOOKUP(H16,'Point Values'!$A:$B,2,FALSE) -> 86 | R16: =VLOOKUP(I16,'Point Values'!$A:$B,2,FALSE) -> 0 | S16: =VLOOKUP(J16,'Point Values'!$A:$B,2,FALSE) -> 76 | T16: =VLOOKUP(K16,'Point Values'!$A:$B,2,FALSE) -> 70 | U16: =VLOOKUP(L16,'Point Values'!$A:$B,2,FALSE) -> 65 | V16: =VLOOKUP(M16,'Point Values'!$A:$B,2,FALSE) -> 0
A17: 15 | B17: 81 | C17: Lee Jordan | E17: 310 | F17: . | G17: . | H17: 11 | I17: 14 | J17: 8 | K17: 8 | L17: . | M17: . | O17: =VLOOKUP(F17,'Point Values'!$A:$B,2,FALSE) -> 0 | P17: =VLOOKUP(G17,'Point Values'!$A:$B,2,FALSE) -> 0 | Q17: =VLOOKUP(H17,'Point Values'!$A:$B,2,FALSE) -> 76 | R17: =VLOOKUP(I17,'Point Values'!$A:$B,2,FALSE) -> 70 | S17: =VLOOKUP(J17,'Point Values'!$A:$B,2,FALSE) -> 82 | T17: =VLOOKUP(K17,'Point Values'!$A:$B,2,FALSE) -> 82 | U17: =VLOOKUP(L17,'Point Values'!$A:$B,2,FALSE) -> 0 | V17: =VLOOKUP(M17,'Point Values'!$A:$B,2,FALSE) -> 0
A18: 16 | B18: 14O | C18: Ryo Ogata | E18: 308 | F18: . | G18: . | H18: . | I18: . | J18: 12 | K18: 9 | L18: 11 | M18: 10 | O18: =VLOOKUP(F18,'Point Values'!$A:$B,2,FALSE) -> 0 | P18: =VLOOKUP(G18,'Point Values'!$A:$B,2,FALSE) -> 0 | Q18: =VLOOKUP(H18,'Point Values'!$A:$B,2,FALSE) -> 0 | R18: =VLOOKUP(I18,'Point Values'!$A:$B,2,FALSE) -> 0 | S18: =VLOOKUP(J18,'Point Values'!$A:$B,2,FALSE) -> 74 | T18: =VLOOKUP(K18,'Point Values'!$A:$B,2,FALSE) -> 80 | U18: =VLOOKUP(L18,'Point Values'!$A:$B,2,FALSE) -> 76 | V18: =VLOOKUP(M18,'Point Values'!$A:$B,2,FALSE) -> 78
A19: 17 | B19: 17M | C19: Daniel Knight | E19: 214 | F19: . | G19: . | H19: 14 | I19: 13 | J19: . | K19: . | L19: . | M19: 13 | O19: =VLOOKUP(F19,'Point Values'!$A:$B,2,FALSE) -> 0 | P19: =VLOOKUP(G19,'Point Values'!$A:$B,2,FALSE) -> 0 | Q19: =VLOOKUP(H19,'Point Values'!$A:$B,2,FALSE) -> 70 | R19: =VLOOKUP(I19,'Point Values'!$A:$B,2,FALSE) -> 72 | S19: =VLOOKUP(J19,'Point Values'!$A:$B,2,FALSE) -> 0 | T19: =VLOOKUP(K19,'Point Values'!$A:$B,2,FALSE) -> 0 | U19: =VLOOKUP(L19,'Point Values'!$A:$B,2,FALSE) -> 0 | V19: =VLOOKUP(M19,'Point Values'!$A:$B,2,FALSE) -> 72
A20: 18 | B20: 83 | C20: Chris Honeycutt | E20: 165 | F20: 4 | G20: 12 | H20: . | I20: . | J20: . | K20: . | L20: . | M20: . | O20: =VLOOKUP(F20,'Point Values'!$A:$B,2,FALSE) -> 91 | P20: =VLOOKUP(G20,'Point Values'!$A:$B,2,FALSE) -> 74 | Q20: =VLOOKUP(H20,'Point Values'!$A:$B,2,FALSE) -> 0 | R20: =VLOOKUP(I20,'Point Values'!$A:$B,2,FALSE) -> 0 | S20: =VLOOKUP(J20,'Point Values'!$A:$B,2,FALSE) -> 0 | T20: =VLOOKUP(K20,'Point Values'!$A:$B,2,FALSE) -> 0 | U20: =VLOOKUP(L20,'Point Values'!$A:$B,2,FALSE) -> 0 | V20: =VLOOKUP(M20,'Point Values'!$A:$B,2,FALSE) -> 0
A21: 19 | B21: 00 | C21: Andrew Dollar | E21: 163 | F21: 17 | G21: 2 | H21: . | I21: . | J21: . | K21: . | L21: . | M21: . | O21: =VLOOKUP(F21,'Point Values'!$A:$B,2,FALSE) -> 66 | P21: =VLOOKUP(G21,'Point Values'!$A:$B,2,FALSE) -> 97 | Q21: =VLOOKUP(H21,'Point Values'!$A:$B,2,FALSE) -> 0 | R21: =VLOOKUP(I21,'Point Values'!$A:$B,2,FALSE) -> 0 | S21: =VLOOKUP(J21,'Point Values'!$A:$B,2,FALSE) -> 0 | T21: =VLOOKUP(K21,'Point Values'!$A:$B,2,FALSE) -> 0 | U21: =VLOOKUP(L21,'Point Values'!$A:$B,2,FALSE) -> 0 | V21: =VLOOKUP(M21,'Point Values'!$A:$B,2,FALSE) -> 0
A22: 20 | B22: 98 | C22: Cal Stewart | E22: 152 | F22: 13 | G22: 9 | H22: . | I22: . | J22: . | K22: . | L22: . | M22: . | O22: =VLOOKUP(F22,'Point Values'!$A:$B,2,FALSE) -> 72 | P22: =VLOOKUP(G22,'Point Values'!$A:$B,2,FALSE) -> 80 | Q22: =VLOOKUP(H22,'Point Values'!$A:$B,2,FALSE) -> 0 | R22: =VLOOKUP(I22,'Point Values'!$A:$B,2,FALSE) -> 0 | S22: =VLOOKUP(J22,'Point Values'!$A:$B,2,FALSE) -> 0 | T22: =VLOOKUP(K22,'Point Values'!$A:$B,2,FALSE) -> 0 | U22: =VLOOKUP(L22,'Point Values'!$A:$B,2,FALSE) -> 0 | V22: =VLOOKUP(M22,'Point Values'!$A:$B,2,FALSE) -> 0
A23: 21 | B23: 7 | C23: Adam Berberich | E23: 148 | F23: 11 | G23: 13 | H23: . | I23: . | J23: . | K23: . | L23: . | M23: . | O23: =VLOOKUP(F23,'Point Values'!$A:$B,2,FALSE) -> 76 | P23: =VLOOKUP(G23,'Point Values'!$A:$B,2,FALSE) -> 72 | Q23: =VLOOKUP(H23,'Point Values'!$A:$B,2,FALSE) -> 0 | R23: =VLOOKUP(I23,'Point Values'!$A:$B,2,FALSE) -> 0 | S23: =VLOOKUP(J23,'Point Values'!$A:$B,2,FALSE) -> 0 | T23: =VLOOKUP(K23,'Point Values'!$A:$B,2,FALSE) -> 0 | U23: =VLOOKUP(L23,'Point Values'!$A:$B,2,FALSE) -> 0 | V23: =VLOOKUP(M23,'Point Values'!$A:$B,2,FALSE) -> 0
A24: 22 | B24: 22D | C24: Ryan DeMartini | E24: 142 | F24: . | G24: . | H24: . | I24: . | J24: . | K24: . | L24: 15 | M24: 12 | O24: =VLOOKUP(F24,'Point Values'!$A:$B,2,FALSE) -> 0 | P24: =VLOOKUP(G24,'Point Values'!$A:$B,2,FALSE) -> 0 | Q24: =VLOOKUP(H24,'Point Values'!$A:$B,2,FALSE) -> 0 | R24: =VLOOKUP(I24,'Point Values'!$A:$B,2,FALSE) -> 0 | S24: =VLOOKUP(J24,'Point Values'!$A:$B,2,FALSE) -> 0 | T24: =VLOOKUP(K24,'Point Values'!$A:$B,2,FALSE) -> 0 | U24: =VLOOKUP(L24,'Point Values'!$A:$B,2,FALSE) -> 68 | V24: =VLOOKUP(M24,'Point Values'!$A:$B,2,FALSE) -> 74
A25: 23 | B25: 53 | C25: Zach Helms | E25: 137 | F25: . | G25: . | H25: . | I25: . | J25: . | K25: . | L25: 16 | M25: 14 | O25: =VLOOKUP(F25,'Point Values'!$A:$B,2,FALSE) -> 0 | P25: =VLOOKUP(G25,'Point Values'!$A:$B,2,FALSE) -> 0 | Q25: =VLOOKUP(H25,'Point Values'!$A:$B,2,FALSE) -> 0 | R25: =VLOOKUP(I25,'Point Values'!$A:$B,2,FALSE) -> 0 | S25: =VLOOKUP(J25,'Point Values'!$A:$B,2,FALSE) -> 0 | T25: =VLOOKUP(K25,'Point Values'!$A:$B,2,FALSE) -> 0 | U25: =VLOOKUP(L25,'Point Values'!$A:$B,2,FALSE) -> 67 | V25: =VLOOKUP(M25,'Point Values'!$A:$B,2,FALSE) -> 70
A26: 24 | B26: 8 | C26: Gerad Miller | E26: 134 | F26: . | G26: . | H26: 17 | I26: 15 | J26: . | K26: . | L26: . | M26: . | O26: =VLOOKUP(F26,'Point Values'!$A:$B,2,FALSE) -> 0 | P26: =VLOOKUP(G26,'Point Values'!$A:$B,2,FALSE) -> 0 | Q26: =VLOOKUP(H26,'Point Values'!$A:$B,2,FALSE) -> 66 | R26: =VLOOKUP(I26,'Point Values'!$A:$B,2,FALSE) -> 68 | S26: =VLOOKUP(J26,'Point Values'!$A:$B,2,FALSE) -> 0 | T26: =VLOOKUP(K26,'Point Values'!$A:$B,2,FALSE) -> 0 | U26: =VLOOKUP(L26,'Point Values'!$A:$B,2,FALSE) -> 0 | V26: =VLOOKUP(M26,'Point Values'!$A:$B,2,FALSE) -> 0
A27: 25 | B27: 08Q | C27: Kody Quinn | E27: 133 | F27: 18 | G27: 15 | H27: . | I27: . | J27: . | K27: . | L27: . | M27: . | O27: =VLOOKUP(F27,'Point Values'!$A:$B,2,FALSE) -> 65 | P27: =VLOOKUP(G27,'Point Values'!$A:$B,2,FALSE) -> 68 | Q27: =VLOOKUP(H27,'Point Values'!$A:$B,2,FALSE) -> 0 | R27: =VLOOKUP(I27,'Point Values'!$A:$B,2,FALSE) -> 0 | S27: =VLOOKUP(J27,'Point Values'!$A:$B,2,FALSE) -> 0 | T27: =VLOOKUP(K27,'Point Values'!$A:$B,2,FALSE) -> 0 | U27: =VLOOKUP(L27,'Point Values'!$A:$B,2,FALSE) -> 0 | V27: =VLOOKUP(M27,'Point Values'!$A:$B,2,FALSE) -> 0
A28: 26 | B28: 5 | C28: Cody Fredreicks | E28: 129 | F28: 21 | G28: 16 | H28: . | I28: . | J28: . | K28: . | L28: . | M28: . | O28: =VLOOKUP(F28,'Point Values'!$A:$B,2,FALSE) -> 62 | P28: =VLOOKUP(G28,'Point Values'!$A:$B,2,FALSE) -> 67 | Q28: =VLOOKUP(H28,'Point Values'!$A:$B,2,FALSE) -> 0 | R28: =VLOOKUP(I28,'Point Values'!$A:$B,2,FALSE) -> 0 | S28: =VLOOKUP(J28,'Point Values'!$A:$B,2,FALSE) -> 0 | T28: =VLOOKUP(K28,'Point Values'!$A:$B,2,FALSE) -> 0 | U28: =VLOOKUP(L28,'Point Values'!$A:$B,2,FALSE) -> 0 | V28: =VLOOKUP(M28,'Point Values'!$A:$B,2,FALSE) -> 0
A29: 27 | B29: 99XL | C29: Nate Tretow | E29: 91 | F29: . | G29: . | H29: . | I29: . | J29: . | K29: . | L29: 4 | M29: DQ | O29: =VLOOKUP(F29,'Point Values'!$A:$B,2,FALSE) -> 0 | P29: =VLOOKUP(G29,'Point Values'!$A:$B,2,FALSE) -> 0 | Q29: =VLOOKUP(H29,'Point Values'!$A:$B,2,FALSE) -> 0 | R29: =VLOOKUP(I29,'Point Values'!$A:$B,2,FALSE) -> 0 | S29: =VLOOKUP(J29,'Point Values'!$A:$B,2,FALSE) -> 0 | T29: =VLOOKUP(K29,'Point Values'!$A:$B,2,FALSE) -> 0 | U29: =VLOOKUP(L29,'Point Values'!$A:$B,2,FALSE) -> 91 | V29: =VLOOKUP(M29,'Point Values'!$A:$B,2,FALSE) -> 0
A30: 28 | B30: 860 | C30: DJ Canipe | E30: 72 | F30: . | G30: . | H30: 13 | I30: . | J30: . | K30: . | L30: . | M30: . | O30: =VLOOKUP(F30,'Point Values'!$A:$B,2,FALSE) -> 0 | P30: =VLOOKUP(G30,'Point Values'!$A:$B,2,FALSE) -> 0 | Q30: =VLOOKUP(H30,'Point Values'!$A:$B,2,FALSE) -> 72 | R30: =VLOOKUP(I30,'Point Values'!$A:$B,2,FALSE) -> 0 | S30: =VLOOKUP(J30,'Point Values'!$A:$B,2,FALSE) -> 0 | T30: =VLOOKUP(K30,'Point Values'!$A:$B,2,FALSE) -> 0 | U30: =VLOOKUP(L30,'Point Values'!$A:$B,2,FALSE) -> 0 | V30: =VLOOKUP(M30,'Point Values'!$A:$B,2,FALSE) -> 0
A31: 29 | B31: 99 | C31: Dustin Coonsfield | E31: 70 | F31: 14 | G31: . | H31: . | I31: . | J31: . | K31: . | L31: . | M31: . | O31: =VLOOKUP(F31,'Point Values'!$A:$B,2,FALSE) -> 70 | P31: =VLOOKUP(G31,'Point Values'!$A:$B,2,FALSE) -> 0 | Q31: =VLOOKUP(H31,'Point Values'!$A:$B,2,FALSE) -> 0 | R31: =VLOOKUP(I31,'Point Values'!$A:$B,2,FALSE) -> 0 | S31: =VLOOKUP(J31,'Point Values'!$A:$B,2,FALSE) -> 0 | T31: =VLOOKUP(K31,'Point Values'!$A:$B,2,FALSE) -> 0 | U31: =VLOOKUP(L31,'Point Values'!$A:$B,2,FALSE) -> 0 | V31: =VLOOKUP(M31,'Point Values'!$A:$B,2,FALSE) -> 0
A32: 30 | B32: 22V | C32: Ryan Vargas | E32: 70 | F32: . | G32: . | H32: . | I32: . | J32: . | K32: . | L32: 14 | M32: . | O32: =VLOOKUP(F32,'Point Values'!$A:$B,2,FALSE) -> 0 | P32: =VLOOKUP(G32,'Point Values'!$A:$B,2,FALSE) -> 0 | Q32: =VLOOKUP(H32,'Point Values'!$A:$B,2,FALSE) -> 0 | R32: =VLOOKUP(I32,'Point Values'!$A:$B,2,FALSE) -> 0 | S32: =VLOOKUP(J32,'Point Values'!$A:$B,2,FALSE) -> 0 | T32: =VLOOKUP(K32,'Point Values'!$A:$B,2,FALSE) -> 0 | U32: =VLOOKUP(L32,'Point Values'!$A:$B,2,FALSE) -> 70 | V32: =VLOOKUP(M32,'Point Values'!$A:$B,2,FALSE) -> 0
A33: 31 | B33: 07 | C33: Jesse Hilger | E33: 67 | F33: 16 | G33: . | H33: . | I33: . | J33: . | K33: . | L33: . | M33: . | O33: =VLOOKUP(F33,'Point Values'!$A:$B,2,FALSE) -> 67 | P33: =VLOOKUP(G33,'Point Values'!$A:$B,2,FALSE) -> 0 | Q33: =VLOOKUP(H33,'Point Values'!$A:$B,2,FALSE) -> 0 | R33: =VLOOKUP(I33,'Point Values'!$A:$B,2,FALSE) -> 0 | S33: =VLOOKUP(J33,'Point Values'!$A:$B,2,FALSE) -> 0 | T33: =VLOOKUP(K33,'Point Values'!$A:$B,2,FALSE) -> 0 | U33: =VLOOKUP(L33,'Point Values'!$A:$B,2,FALSE) -> 0 | V33: =VLOOKUP(M33,'Point Values'!$A:$B,2,FALSE) -> 0
A34: 32 | B34: 25 | C34: Dustin Honeycutt | E34: 64 | F34: 19 | G34: . | H34: . | I34: . | J34: . | K34: . | L34: . | M34: . | O34: =VLOOKUP(F34,'Point Values'!$A:$B,2,FALSE) -> 64 | P34: =VLOOKUP(G34,'Point Values'!$A:$B,2,FALSE) -> 0 | Q34: =VLOOKUP(H34,'Point Values'!$A:$B,2,FALSE) -> 0 | R34: =VLOOKUP(I34,'Point Values'!$A:$B,2,FALSE) -> 0 | S34: =VLOOKUP(J34,'Point Values'!$A:$B,2,FALSE) -> 0 | T34: =VLOOKUP(K34,'Point Values'!$A:$B,2,FALSE) -> 0 | U34: =VLOOKUP(L34,'Point Values'!$A:$B,2,FALSE) -> 0 | V34: =VLOOKUP(M34,'Point Values'!$A:$B,2,FALSE) -> 0
A35: 33 | B35: 31 | C35: Jason Treschl | E35: 63 | F35: 20 | G35: . | H35: . | I35: . | J35: . | K35: . | L35: . | M35: . | O35: =VLOOKUP(F35,'Point Values'!$A:$B,2,FALSE) -> 63 | P35: =VLOOKUP(G35,'Point Values'!$A:$B,2,FALSE) -> 0 | Q35: =VLOOKUP(H35,'Point Values'!$A:$B,2,FALSE) -> 0 | R35: =VLOOKUP(I35,'Point Values'!$A:$B,2,FALSE) -> 0 | S35: =VLOOKUP(J35,'Point Values'!$A:$B,2,FALSE) -> 0 | T35: =VLOOKUP(K35,'Point Values'!$A:$B,2,FALSE) -> 0 | U35: =VLOOKUP(L35,'Point Values'!$A:$B,2,FALSE) -> 0 | V35: =VLOOKUP(M35,'Point Values'!$A:$B,2,FALSE) -> 0
A37: *Ties will be broken by: 1) number of wins, 2) number of 2nd places, 3) number of third place finishes, etc., until the tie is broken).

Sheet Masters
A1: MASTER - 2018 WINTER HEAT POINTS
A2: CHAMPIONSHIP STANDING | B2: CAR NUMBER | C2: DRIVERS NAME | E2: TOTAL POINTS | F2: 2017-12-16 | G2: 2017-12-17 | H2: 2017-01-13 | I2: 2018-01-13 | J2: 2018-01-20 | K2: 2018-01-20 | L2: 2018-01-27 | M2: 2018-02-03 | O2: 2017-12-16 | P2: 2017-12-17 | Q2: 2017-01-13 | R2: 2018-01-13 | S2: 2018-01-20 | T2: 2018-01-20 | U2: 2018-01-27 | V2: 2018-02-03
A3: 1 | B3: 58 | C3: Carl Cormier | E3: =SUM(O3:V3) -> 697 | F3: 1 | G3: 3 | H3: 1 | I3: 1 | J3: 2 | K3: 1 | L3: 1 | M3: 1 | O3: =VLOOKUP(F3,'Point Values'!$A:$B,2,FALSE) -> 100 | P3: 0 | Q3: =VLOOKUP(H3,'Point Values'!$A:$B,2,FALSE) -> 100 | R3: =VLOOKUP(I3,'Point Values'!$A:$B,2,FALSE) -> 100 | S3: =VLOOKUP(J3,'Point Values'!$A:$B,2,FALSE) -> 97 | T3: =VLOOKUP(K3,'Point Values'!$A:$B,2,FALSE) -> 100 | U3: =VLOOKUP(L3,'Point Values'!$A:$B,2,FALSE) -> 100 | V3: =VLOOKUP(M3,'Point Values'!$A:$B,2,FALSE) -> 100
A4: 2 | B4: 50 | C4: Todd Midas | E4: =SUM(O4:V4) -> 655 | F4: 5 | G4: 1 | H4: 3 | I4: 2 | J4: 8 | K4: 4 | L4: 5 | M4: 2 | O4: =VLOOKUP(F4,'Point Values'!$A:$B,2,FALSE) -> 88 | P4: =VLOOKUP(G4,'Point Values'!$A:$B,2,FALSE) -> 100 | Q4: =VLOOKUP(H4,'Point Values'!$A:$B,2,FALSE) -> 94 | R4: =VLOOKUP(I4,'Point Values'!$A:$B,2,FALSE) -> 97 | S4: 0 | T4: =VLOOKUP(K4,'Point Values'!$A:$B,2,FALSE) -> 91 | U4: =VLOOKUP(L4,'Point Values'!$A:$B,2,FALSE) -> 88 | V4: =VLOOKUP(M4,'Point Values'!$A:$B,2,FALSE) -> 97
A5: 3 | B5: 02 | C5: Sal Jimenez | E5: =SUM(O5:V5) -> 601 | F5: 7 | G5: 7 | H5: 5 | I5: 4 | J5: 7 | K5: 7 | L5: 8 | M5: 6 | O5: =VLOOKUP(F5,'Point Values'!$A:$B,2,FALSE) -> 84 | P5: =VLOOKUP(G5,'Point Values'!$A:$B,2,FALSE) -> 84 | Q5: =VLOOKUP(H5,'Point Values'!$A:$B,2,FALSE) -> 88 | R5: =VLOOKUP(I5,'Point Values'!$A:$B,2,FALSE) -> 91 | S5: =VLOOKUP(J5,'Point Values'!$A:$B,2,FALSE) -> 84 | T5: =VLOOKUP(K5,'Point Values'!$A:$B,2,FALSE) -> 84 | U5: 0 | V5: =VLOOKUP(M5,'Point Values'!$A:$B,2,FALSE) -> 86
A6: 4 | B6: 22 | C6: Dewayne Holder | E6: =SUM(O6:V6) -> 541 | F6: 9 | G6: 6 | H6: 4 | I6: 3 | J6: DQ | K6: 5 | L6: 4 | M6: 4 | O6: 0 | P6: =VLOOKUP(G6,'Point Values'!$A:$B,2,FALSE) -> 86 | Q6: =VLOOKUP(H6,'Point Values'!$A:$B,2,FALSE) -> 91 | R6: =VLOOKUP(I6,'Point Values'!$A:$B,2,FALSE) -> 94 | S6: =VLOOKUP(J6,'Point Values'!$A:$B,2,FALSE) -> 0 | T6: =VLOOKUP(K6,'Point Values'!$A:$B,2,FALSE) -> 88 | U6: =VLOOKUP(L6,'Point Values'!$A:$B,2,FALSE) -> 91 | V6: =VLOOKUP(M6,'Point Values'!$A:$B,2,FALSE) -> 91
A7: 5 | B7: 9 | C7: Bob Conner | E7: =SUM(O7:V7) -> 527 | F7: . | G7: . | H7: 2 | I7: 5 | J7: 5 | K7: 9 | L7: 6 | M7: 5 | O7: =VLOOKUP(F7,'Point Values'!$A:$B,2,FALSE) -> 0 | P7: =VLOOKUP(G7,'Point Values'!$A:$B,2,FALSE) -> 0 | Q7: =VLOOKUP(H7,'Point Values'!$A:$B,2,FALSE) -> 97 | R7: =VLOOKUP(I7,'Point Values'!$A:$B,2,FALSE) -> 88 | S7: =VLOOKUP(J7,'Point Values'!$A:$B,2,FALSE) -> 88 | T7: =VLOOKUP(K7,'Point Values'!$A:$B,2,FALSE) -> 80 | U7: =VLOOKUP(L7,'Point Values'!$A:$B,2,FALSE) -> 86 | V7: =VLOOKUP(M7,'Point Values'!$A:$B,2,FALSE) -> 88
A8: 6 | B8: 36 | C8: Craig Bruce | E8: =SUM(O8:V8) -> 476 | F8: 2 | G8: 2 | H8: . | I8: . | J8: 3 | K8: 3 | L8: 3 | M8: . | O8: =VLOOKUP(F8,'Point Values'!$A:$B,2,FALSE) -> 97 | P8: =VLOOKUP(G8,'Point Values'!$A:$B,2,FALSE) -> 97 | Q8: =VLOOKUP(H8,'Point Values'!$A:$B,2,FALSE) -> 0 | R8: =VLOOKUP(I8,'Point Values'!$A:$B,2,FALSE) -> 0 | S8: =VLOOKUP(J8,'Point Values'!$A:$B,2,FALSE) -> 94 | T8: =VLOOKUP(K8,'Point Values'!$A:$B,2,FALSE) -> 94 | U8: =VLOOKUP(L8,'Point Values'!$A:$B,2,FALSE) -> 94 | V8: =VLOOKUP(M8,'Point Values'!$A:$B,2,FALSE) -> 0
A9: 7 | B9: 13 | C9: Jack Green | E9: =SUM(O9:V9) -> 342 | F9: . | G9: . | H9: 6 | I9: . | J9: 6 | K9: 6 | L9: 7 | M9: . | O9: =VLOOKUP(F9,'Point Values'!$A:$B,2,FALSE) -> 0 | P9: =VLOOKUP(G9,'Point Values'!$A:$B,2,FALSE) -> 0 | Q9: =VLOOKUP(H9,'Point Values'!$A:$B,2,FALSE) -> 86 | R9: =VLOOKUP(I9,'Point Values'!$A:$B,2,FALSE) -> 0 | S9: =VLOOKUP(J9,'Point Values'!$A:$B,2,FALSE) -> 86 | T9: =VLOOKUP(K9,'Point Values'!$A:$B,2,FALSE) -> 86 | U9: =VLOOKUP(L9,'Point Values'!$A:$B,2,FALSE) -> 84 | V9: =VLOOKUP(M9,'Point Values'!$A:$B,2,FALSE) -> 0
A10: 8 | B10: 23S | C10: Sean Buffington | E10: =SUM(O10:V10) -> 294 | F10: . | G10: . | H10: . | I10: . | J10: 1 | K10: 2 | L10: 2 | M10: . | O10: =VLOOKUP(F10,'Point Values'!$A:$B,2,FALSE) -> 0 | P10: =VLOOKUP(G10,'Point Values'!$A:$B,2,FALSE) -> 0 | Q10: =VLOOKUP(H10,'Point Values'!$A:$B,2,FALSE) -> 0 | R10: =VLOOKUP(I10,'Point Values'!$A:$B,2,FALSE) -> 0 | S10: =VLOOKUP(J10,'Point Values'!$A:$B,2,FALSE) -> 100 | T10: =VLOOKUP(K10,'Point Values'!$A:$B,2,FALSE) -> 97 | U10: =VLOOKUP(L10,'Point Values'!$A:$B,2,FALSE) -> 97 | V10: =VLOOKUP(M10,'Point Values'!$A:$B,2,FALSE) -> 0
A11: 9 | B11: 21 | C11: Karl Moberg | E11: =SUM(O11:V11) -> 182 | F11: 3 | G11: 5 | H11: . | I11: . | J11: . | K11: . | L11: . | M11: . | O11: =VLOOKUP(F11,'Point Values'!$A:$B,2,FALSE) -> 94 | P11: =VLOOKUP(G11,'Point Values'!$A:$B,2,FALSE) -> 88 | Q11: =VLOOKUP(H11,'Point Values'!$A:$B,2,FALSE) -> 0 | R11: =VLOOKUP(I11,'Point Values'!$A:$B,2,FALSE) -> 0 | S11: =VLOOKUP(J11,'Point Values'!$A:$B,2,FALSE) -> 0 | T11: =VLOOKUP(K11,'Point Values'!$A:$B,2,FALSE) -> 0 | U11: =VLOOKUP(L11,'Point Values'!$A:$B,2,FALSE) -> 0 | V11: =VLOOKUP(M11,'Point Values'!$A:$B,2,FALSE) -> 0
A12: 10 | B12: 33 | C12: Scott Wessel | E12: =SUM(O12:V12) -> 177 | F12: 6 | G12: 4 | H12: . | I12: . | J12: . | K12: . | L12: . | M12: . | O12: =VLOOKUP(F12,'Point Values'!$A:$B,2,FALSE) -> 86 | P12: =VLOOKUP(G12,'Point Values'!$A:$B,2,FALSE) -> 91 | Q12: =VLOOKUP(H12,'Point Values'!$A:$B,2,FALSE) -> 0 | R12: =VLOOKUP(I12,'Point Values'!$A:$B,2,FALSE) -> 0 | S12: =VLOOKUP(J12,'Point Values'!$A:$B,2,FALSE) -> 0 | T12: =VLOOKUP(K12,'Point Values'!$A:$B,2,FALSE) -> 0 | U12: =VLOOKUP(L12,'Point Values'!$A:$B,2,FALSE) -> 0 | V12: =VLOOKUP(M12,'Point Values'!$A:$B,2,FALSE) -> 0
A13: 11 | B13: 7 | C13: Taka Taka | E13: =SUM(O13:V13) -> 173 | F13: . | G13: . | H13: . | I13: . | J13: 4 | K13: 8 | L13: . | M13: . | O13: =VLOOKUP(F13,'Point Values'!$A:$B,2,FALSE) -> 0 | P13: =VLOOKUP(G13,'Point Values'!$A:$B,2,FALSE) -> 0 | Q13: =VLOOKUP(H13,'Point Values'!$A:$B,2,FALSE) -> 0 | R13: =VLOOKUP(I13,'Point Values'!$A:$B,2,FALSE) -> 0 | S13: =VLOOKUP(J13,'Point Values'!$A:$B,2,FALSE) -> 91 | T13: =VLOOKUP(K13,'Point Values'!$A:$B,2,FALSE) -> 82 | U13: =VLOOKUP(L13,'Point Values'!$A:$B,2,FALSE) -> 0 | V13: =VLOOKUP(M13,'Point Values'!$A:$B,2,FALSE) -> 0
A14: 12 | B14: 399 | C14: Bob Weymouth | E14: =SUM(O14:V14) -> 94 | F14: . | G14: . | H14: . | I14: . | J14: . | K14: . | L14: . | M14: 3 | O14: =VLOOKUP(F14,'Point Values'!$A:$B,2,FALSE) -> 0 | P14: =VLOOKUP(G14,'Point Values'!$A:$B,2,FALSE) -> 0 | Q14: =VLOOKUP(H14,'Point Values'!$A:$B,2,FALSE) -> 0 | R14: =VLOOKUP(I14,'Point Values'!$A:$B,2,FALSE) -> 0 | S14: =VLOOKUP(J14,'Point Values'!$A:$B,2,FALSE) -> 0 | T14: =VLOOKUP(K14,'Point Values'!$A:$B,2,FALSE) -> 0 | U14: =VLOOKUP(L14,'Point Values'!$A:$B,2,FALSE) -> 0 | V14: =VLOOKUP(M14,'Point Values'!$A:$B,2,FALSE) -> 94
A15: 13 | B15: 53 | C15: Bruce Silver | E15: =SUM(O15:V15) -> 91 | F15: 4 | G15: . | H15: . | I15: . | J15: . | K15: . | L15: . | M15: . | O15: =VLOOKUP(F15,'Point Values'!$A:$B,2,FALSE) -> 91 | P15: =VLOOKUP(G15,'Point Values'!$A:$B,2,FALSE) -> 0 | Q15: =VLOOKUP(H15,'Point Values'!$A:$B,2,FALSE) -> 0 | R15: =VLOOKUP(I15,'Point Values'!$A:$B,2,FALSE) -> 0 | S15: =VLOOKUP(J15,'Point Values'!$A:$B,2,FALSE) -> 0 | T15: =VLOOKUP(K15,'Point Values'!$A:$B,2,FALSE) -> 0 | U15: =VLOOKUP(L15,'Point Values'!$A:$B,2,FALSE) -> 0 | V15: =VLOOKUP(M15,'Point Values'!$A:$B,2,FALSE) -> 0
A16: 14 | B16: 42 | C16: Patrick Moore | E16: =SUM(O16:V16) -> 82 | F16: 8 | G16: . | H16: . | I16: . | J16: . | K16: . | L16: . | M16: . | O16: =VLOOKUP(F16,'Point Values'!$A:$B,2,FALSE) -> 82 | P16: =VLOOKUP(G16,'Point Values'!$A:$B,2,FALSE) -> 0 | Q16: =VLOOKUP(H16,'Point Values'!$A:$B,2,FALSE) -> 0 | R16: =VLOOKUP(I16,'Point Values'!$A:$B,2,FALSE) -> 0 | S16: =VLOOKUP(J16,'Point Values'!$A:$B,2,FALSE) -> 0 | T16: =VLOOKUP(K16,'Point Values'!$A:$B,2,FALSE) -> 0 | U16: =VLOOKUP(L16,'Point Values'!$A:$B,2,FALSE) -> 0 | V16: =VLOOKUP(M16,'Point Values'!$A:$B,2,FALSE) -> 0
A17: 15
A18: 16
A19: 17
A20: 18
A21: 19
A22: 20
A23: *Ties will be broken by: 1) number of wins, 2) number of 2nd places, 3) number of third place finishes, etc., until the tie is broken).

Sheet Pro
A1: PRO - 2018 WINTER HEAT POINTS
A2: CHAMPIONSHIP STANDING | B2: CAR NUMBER | C2: DRIVERS NAME | E2: TOTAL POINTS | F2: 2017-12-16 | G2: 2017-12-17 | H2: 2017-01-13 | I2: 2018-01-13 | J2: 2018-01-20 | K2: 2018-01-20 | L2: 2018-01-27 | M2: 2018-02-03 | O2: 2017-12-16 | P2: 2017-12-17 | Q2: 2017-01-13 | R2: 2018-01-13 | S2: 2018-01-20 | T2: 2018-01-20 | U2: 2018-01-27 | V2: 2018-02-03
A3: 1 | B3: 31 | C3: Noah Korner | E3: =SUM(O3:V3) -> 667 | F3: 3 | G3: 3 | H3: 2 | I3: 3 | J3: 2 | K3: 2 | L3: 3 | M3: 3 | O3: 0 | P3: =VLOOKUP(G3,'Point Values'!$A:$B,2,FALSE) -> 94 | Q3: =VLOOKUP(H3,'Point Values'!$A:$B,2,FALSE) -> 97 | R3: =VLOOKUP(I3,'Point Values'!$A:$B,2,FALSE) -> 94 | S3: =VLOOKUP(J3,'Point Values'!$A:$B,2,FALSE) -> 97 | T3: =VLOOKUP(K3,'Point Values'!$A:$B,2,FALSE) -> 97 | U3: =VLOOKUP(L3,'Point Values'!$A:$B,2,FALSE) -> 94 | V3: =VLOOKUP(M3,'Point Values'!$A:$B,2,FALSE) -> 94
A4: 2 | B4: 22 | C4: Sam Mayer | E4: 665 | F4: 1 | G4: 1 | H4: 3 | I4: 2 | J4: 3 | K4: 3 | L4: 4 | M4: 6 | O4: =VLOOKUP(F4,'Point Values'!$A:$B,2,FALSE) -> 100 | P4: =VLOOKUP(G4,'Point Values'!$A:$B,2,FALSE) -> 100 | Q4: =VLOOKUP(H4,'Point Values'!$A:$B,2,FALSE) -> 94 | R4: =VLOOKUP(I4,'Point Values'!$A:$B,2,FALSE) -> 97 | S4: =VLOOKUP(J4,'Point Values'!$A:$B,2,FALSE) -> 94 | T4: =VLOOKUP(K4,'Point Values'!$A:$B,2,FALSE) -> 94 | U4: 0 | V4: =VLOOKUP(M4,'Point Values'!$A:$B,2,FALSE) -> 86
A5: 3 | B5: 48 | C5: Dennis Lambert | E5: 581 | F5: . | G5: . | H5: 1 | I5: 1 | J5: 1 | K5: 1 | L5: 2 | M5: 7 | O5: =VLOOKUP(F5,'Point Values'!$A:$B,2,FALSE) -> 0 | P5: =VLOOKUP(G5,'Point Values'!$A:$B,2,FALSE) -> 0 | Q5: =VLOOKUP(H5,'Point Values'!$A:$B,2,FALSE) -> 100 | R5: =VLOOKUP(I5,'Point Values'!$A:$B,2,FALSE) -> 100 | S5: =VLOOKUP(J5,'Point Values'!$A:$B,2,FALSE) -> 100 | T5: =VLOOKUP(K5,'Point Values'!$A:$B,2,FALSE) -> 100 | U5: =VLOOKUP(L5,'Point Values'!$A:$B,2,FALSE) -> 97 | V5: =VLOOKUP(M5,'Point Values'!$A:$B,2,FALSE) -> 84
A6: 4 | B6: 98 | C6: Nick Sanchez | E6: 451 | F6: . | G6: . | H6: 4 | I6: 6 | J6: 4 | K6: . | L6: 6 | M6: 2 | O6: =VLOOKUP(F6,'Point Values'!$A:$B,2,FALSE) -> 0 | P6: =VLOOKUP(G6,'Point Values'!$A:$B,2,FALSE) -> 0 | Q6: =VLOOKUP(H6,'Point Values'!$A:$B,2,FALSE) -> 91 | R6: =VLOOKUP(I6,'Point Values'!$A:$B,2,FALSE) -> 86 | S6: =VLOOKUP(J6,'Point Values'!$A:$B,2,FALSE) -> 91 | T6: =VLOOKUP(K6,'Point Values'!$A:$B,2,FALSE) -> 0 | U6: =VLOOKUP(L6,'Point Values'!$A:$B,2,FALSE) -> 86 | V6: =VLOOKUP(M6,'Point Values'!$A:$B,2,FALSE) -> 97
A7: 5 | B7: 16 | C7: Jordan Lamothe | E7: 430 | F7: 5 | G7: 6 | H7: 8 | I7: . | J7: 5 | K7: 6 | L7: . | M7: . | O7: =VLOOKUP(F7,'Point Values'!$A:$B,2,FALSE) -> 88 | P7: =VLOOKUP(G7,'Point Values'!$A:$B,2,FALSE) -> 86 | Q7: =VLOOKUP(H7,'Point Values'!$A:$B,2,FALSE) -> 82 | R7: =VLOOKUP(I7,'Point Values'!$A:$B,2,FALSE) -> 0 | S7: =VLOOKUP(J7,'Point Values'!$A:$B,2,FALSE) -> 88 | T7: =VLOOKUP(K7,'Point Values'!$A:$B,2,FALSE) -> 86 | U7: =VLOOKUP(L7,'Point Values'!$A:$B,2,FALSE) -> 0 | V7: =VLOOKUP(M7,'Point Values'!$A:$B,2,FALSE) -> 0
A8: 6 | B8: 25 | C8: William Byron | E8: 275 | F8: . | G8: . | H8: . | I8: . | J8: 7 | K8: 4 | L8: 1 | M8: . | O8: =VLOOKUP(F8,'Point Values'!$A:$B,2,FALSE) -> 0 | P8: =VLOOKUP(G8,'Point Values'!$A:$B,2,FALSE) -> 0 | Q8: =VLOOKUP(H8,'Point Values'!$A:$B,2,FALSE) -> 0 | R8: =VLOOKUP(I8,'Point Values'!$A:$B,2,FALSE) -> 0 | S8: =VLOOKUP(J8,'Point Values'!$A:$B,2,FALSE) -> 84 | T8: =VLOOKUP(K8,'Point Values'!$A:$B,2,FALSE) -> 91 | U8: =VLOOKUP(L8,'Point Values'!$A:$B,2,FALSE) -> 100 | V8: =VLOOKUP(M8,'Point Values'!$A:$B,2,FALSE) -> 0
A9: 7 | B9: 08 | C9: Cory Hall | E9: 194 | F9: 2 | G9: 2 | H9: . | I9: . | J9: . | K9: . | L9: . | M9: . | O9: =VLOOKUP(F9,'Point Values'!$A:$B,2,FALSE) -> 97 | P9: =VLOOKUP(G9,'Point Values'!$A:$B,2,FALSE) -> 97 | Q9: =VLOOKUP(H9,'Point Values'!$A:$B,2,FALSE) -> 0 | R9: =VLOOKUP(I9,'Point Values'!$A:$B,2,FALSE) -> 0 | S9: =VLOOKUP(J9,'Point Values'!$A:$B,2,FALSE) -> 0 | T9: =VLOOKUP(K9,'Point Values'!$A:$B,2,FALSE) -> 0 | U9: =VLOOKUP(L9,'Point Values'!$A:$B,2,FALSE) -> 0 | V9: =VLOOKUP(M9,'Point Values'!$A:$B,2,FALSE) -> 0
A10: 8 | B10: 140 | C10: Jordan O'Brien | E10: 188 | F10: . | G10: . | H10: . | I10: . | J10: . | K10: . | L10: 5 | M10: 1 | O10: =VLOOKUP(F10,'Point Values'!$A:$B,2,FALSE) -> 0 | P10: =VLOOKUP(G10,'Point Values'!$A:$B,2,FALSE) -> 0 | Q10: =VLOOKUP(H10,'Point Values'!$A:$B,2,FALSE) -> 0 | R10: =VLOOKUP(I10,'Point Values'!$A:$B,2,FALSE) -> 0 | S10: =VLOOKUP(J10,'Point Values'!$A:$B,2,FALSE) -> 0 | T10: =VLOOKUP(K10,'Point Values'!$A:$B,2,FALSE) -> 0 | U10: =VLOOKUP(L10,'Point Values'!$A:$B,2,FALSE) -> 88 | V10: =VLOOKUP(M10,'Point Values'!$A:$B,2,FALSE) -> 100
A11: 9 | B11: 7 | C11: Steven Cantrell | E11: 177 | F11: . | G11: . | H11: 6 | I11: 4 | J11: . | K11: . | L11: . | M11: . | O11: =VLOOKUP(F11,'Point Values'!$A:$B,2,FALSE) -> 0 | P11: =VLOOKUP(G11,'Point Values'!$A:$B,2,FALSE) -> 0 | Q11: =VLOOKUP(H11,'Point Values'!$A:$B,2,FALSE) -> 86 | R11: =VLOOKUP(I11,'Point Values'!$A:$B,2,FALSE) -> 91 | S11: =VLOOKUP(J11,'Point Values'!$A:$B,2,FALSE) -> 0 | T11: =VLOOKUP(K11,'Point Values'!$A:$B,2,FALSE) -> 0 | U11: =VLOOKUP(L11,'Point Values'!$A:$B,2,FALSE) -> 0 | V11: =VLOOKUP(M11,'Point Values'!$A:$B,2,FALSE) -> 0
A12: 10 | B12: 52 | C12: Jordan Stillwell | E12: 174 | F12: 6 | G12: 5 | H12: . | I12: . | J12: . | K12: . | L12: . | M12: . | O12: =VLOOKUP(F12,'Point Values'!$A:$B,2,FALSE) -> 86 | P12: =VLOOKUP(G12,'Point Values'!$A:$B,2,FALSE) -> 88 | Q12: =VLOOKUP(H12,'Point Values'!$A:$B,2,FALSE) -> 0 | R12: =VLOOKUP(I12,'Point Values'!$A:$B,2,FALSE) -> 0 | S12: =VLOOKUP(J12,'Point Values'!$A:$B,2,FALSE) -> 0 | T12: =VLOOKUP(K12,'Point Values'!$A:$B,2,FALSE) -> 0 | U12: =VLOOKUP(L12,'Point Values'!$A:$B,2,FALSE) -> 0 | V12: =VLOOKUP(M12,'Point Values'!$A:$B,2,FALSE) -> 0
A13: 11 | B13: 6 | C13: Jun Takashiro | E13: 174 | F13: . | G13: . | H13: . | I13: . | J13: 6 | K13: 5 | L13: . | M13: . | O13: =VLOOKUP(F13,'Point Values'!$A:$B,2,FALSE) -> 0 | P13: =VLOOKUP(G13,'Point Values'!$A:$B,2,FALSE) -> 0 | Q13: =VLOOKUP(H13,'Point Values'!$A:$B,2,FALSE) -> 0 | R13: =VLOOKUP(I13,'Point Values'!$A:$B,2,FALSE) -> 0 | S13: =VLOOKUP(J13,'Point Values'!$A:$B,2,FALSE) -> 86 | T13: =VLOOKUP(K13,'Point Values'!$A:$B,2,FALSE) -> 88 | U13: =VLOOKUP(L13,'Point Values'!$A:$B,2,FALSE) -> 0 | V13: =VLOOKUP(M13,'Point Values'!$A:$B,2,FALSE) -> 0
A14: 12 | B14: 88 | C14: Nicholas Naugle | E14: 172 | F14: . | G14: . | H14: 5 | I14: 7 | J14: . | K14: . | L14: . | M14: . | O14: =VLOOKUP(F14,'Point Values'!$A:$B,2,FALSE) -> 0 | P14: =VLOOKUP(G14,'Point Values'!$A:$B,2,FALSE) -> 0 | Q14: =VLOOKUP(H14,'Point Values'!$A:$B,2,FALSE) -> 88 | R14: =VLOOKUP(I14,'Point Values'!$A:$B,2,FALSE) -> 84 | S14: =VLOOKUP(J14,'Point Values'!$A:$B,2,FALSE) -> 0 | T14: =VLOOKUP(K14,'Point Values'!$A:$B,2,FALSE) -> 0 | U14: =VLOOKUP(L14,'Point Values'!$A:$B,2,FALSE) -> 0 | V14: =VLOOKUP(M14,'Point Values'!$A:$B,2,FALSE) -> 0
A15: 13 | B15: 1 | C15: Alex Pacheco | E15: 172 | F15: . | G15: . | H15: 7 | I15: 5 | J15: . | K15: . | L15: . | M15: . | O15: =VLOOKUP(F15,'Point Values'!$A:$B,2,FALSE) -> 0 | P15: =VLOOKUP(G15,'Point Values'!$A:$B,2,FALSE) -> 0 | Q15: =VLOOKUP(H15,'Point Values'!$A:$B,2,FALSE) -> 84 | R15: =VLOOKUP(I15,'Point Values'!$A:$B,2,FALSE) -> 88 | S15: =VLOOKUP(J15,'Point Values'!$A:$B,2,FALSE) -> 0 | T15: =VLOOKUP(K15,'Point Values'!$A:$B,2,FALSE) -> 0 | U15: =VLOOKUP(L15,'Point Values'!$A:$B,2,FALSE) -> 0 | V15: =VLOOKUP(M15,'Point Values'!$A:$B,2,FALSE) -> 0
A16: 14 | B16: 84 | C16: Kyle Beattie | E16: 171 | F16: 4 | G16: 9 | H16: . | I16: . | J16: . | K16: . | L16: . | M16: . | O16: =VLOOKUP(F16,'Point Values'!$A:$B,2,FALSE) -> 91 | P16: =VLOOKUP(G16,'Point Values'!$A:$B,2,FALSE) -> 80 | Q16: =VLOOKUP(H16,'Point Values'!$A:$B,2,FALSE) -> 0 | R16: =VLOOKUP(I16,'Point Values'!$A:$B,2,FALSE) -> 0 | S16: =VLOOKUP(J16,'Point Values'!$A:$B,2,FALSE) -> 0 | T16: =VLOOKUP(K16,'Point Values'!$A:$B,2,FALSE) -> 0 | U16: =VLOOKUP(L16,'Point Values'!$A:$B,2,FALSE) -> 0 | V16: =VLOOKUP(M16,'Point Values'!$A:$B,2,FALSE) -> 0
A17: 15 | B17: 3 | C17: Drew Brown | E17: 171 | F17: 9 | G17: 4 | H17: . | I17: . | J17: . | K17: . | L17: . | M17: . | O17: =VLOOKUP(F17,'Point Values'!$A:$B,2,FALSE) -> 80 | P17: =VLOOKUP(G17,'Point Values'!$A:$B,2,FALSE) -> 91 | Q17: =VLOOKUP(H17,'Point Values'!$A:$B,2,FALSE) -> 0 | R17: =VLOOKUP(I17,'Point Values'!$A:$B,2,FALSE) -> 0 | S17: =VLOOKUP(J17,'Point Values'!$A:$B,2,FALSE) -> 0 | T17: =VLOOKUP(K17,'Point Values'!$A:$B,2,FALSE) -> 0 | U17: =VLOOKUP(L17,'Point Values'!$A:$B,2,FALSE) -> 0 | V17: =VLOOKUP(M17,'Point Values'!$A:$B,2,FALSE) -> 0
A18: 16 | B18: 12 | C18: Brandon Martinez | E18: 166 | F18: 7 | G18: 8 | H18: . | I18: . | J18: . | K18: . | L18: . | M18: . | O18: =VLOOKUP(F18,'Point Values'!$A:$B,2,FALSE) -> 84 | P18: =VLOOKUP(G18,'Point Values'!$A:$B,2,FALSE) -> 82 | Q18: =VLOOKUP(H18,'Point Values'!$A:$B,2,FALSE) -> 0 | R18: =VLOOKUP(I18,'Point Values'!$A:$B,2,FALSE) -> 0 | S18: =VLOOKUP(J18,'Point Values'!$A:$B,2,FALSE) -> 0 | T18: =VLOOKUP(K18,'Point Values'!$A:$B,2,FALSE) -> 0 | U18: =VLOOKUP(L18,'Point Values'!$A:$B,2,FALSE) -> 0 | V18: =VLOOKUP(M18,'Point Values'!$A:$B,2,FALSE) -> 0
A19: 17 | B19: 25 | C19: Christopher Clanton | E19: 166 | F19: 8 | G19: 7 | H19: . | I19: . | J19: . | K19: . | L19: . | M19: . | O19: =VLOOKUP(F19,'Point Values'!$A:$B,2,FALSE) -> 82 | P19: =VLOOKUP(G19,'Point Values'!$A:$B,2,FALSE) -> 84 | Q19: =VLOOKUP(H19,'Point Values'!$A:$B,2,FALSE) -> 0 | R19: =VLOOKUP(I19,'Point Values'!$A:$B,2,FALSE) -> 0 | S19: =VLOOKUP(J19,'Point Values'!$A:$B,2,FALSE) -> 0 | T19: =VLOOKUP(K19,'Point Values'!$A:$B,2,FALSE) -> 0 | U19: =VLOOKUP(L19,'Point Values'!$A:$B,2,FALSE) -> 0 | V19: =VLOOKUP(M19,'Point Values'!$A:$B,2,FALSE) -> 0
A20: 18 | B20: 860 | C20: Emil Persson | E20: 164 | F20: . | G20: . | H20: . | I20: . | J20: 9 | K20: 7 | L20: . | M20: . | O20: =VLOOKUP(F20,'Point Values'!$A:$B,2,FALSE) -> 0 | P20: =VLOOKUP(G20,'Point Values'!$A:$B,2,FALSE) -> 0 | Q20: =VLOOKUP(H20,'Point Values'!$A:$B,2,FALSE) -> 0 | R20: =VLOOKUP(I20,'Point Values'!$A:$B,2,FALSE) -> 0 | S20: =VLOOKUP(J20,'Point Values'!$A:$B,2,FALSE) -> 80 | T20: =VLOOKUP(K20,'Point Values'!$A:$B,2,FALSE) -> 84 | U20: =VLOOKUP(L20,'Point Values'!$A:$B,2,FALSE) -> 0 | V20: =VLOOKUP(M20,'Point Values'!$A:$B,2,FALSE) -> 0
A21: 19 | B21: 9 | C21: Carl Vilardo | E21: 91 | F21: . | G21: . | H21: . | I21: . | J21: . | K21: . | L21: . | M21: 4 | O21: =VLOOKUP(F21,'Point Values'!$A:$B,2,FALSE) -> 0 | P21: =VLOOKUP(G21,'Point Values'!$A:$B,2,FALSE) -> 0 | Q21: =VLOOKUP(H21,'Point Values'!$A:$B,2,FALSE) -> 0 | R21: =VLOOKUP(I21,'Point Values'!$A:$B,2,FALSE) -> 0 | S21: =VLOOKUP(J21,'Point Values'!$A:$B,2,FALSE) -> 0 | T21: =VLOOKUP(K21,'Point Values'!$A:$B,2,FALSE) -> 0 | U21: =VLOOKUP(L21,'Point Values'!$A:$B,2,FALSE) -> 0 | V21: =VLOOKUP(M21,'Point Values'!$A:$B,2,FALSE) -> 91
A22: 20 | B22: 52 | C22: Will Rodgers | E22: 88 | F22: . | G22: . | H22: . | I22: . | J22: . | K22: . | L22: . | M22: 5 | O22: =VLOOKUP(F22,'Point Values'!$A:$B,2,FALSE) -> 0 | P22: =VLOOKUP(G22,'Point Values'!$A:$B,2,FALSE) -> 0 | Q22: =VLOOKUP(H22,'Point Values'!$A:$B,2,FALSE) -> 0 | R22: =VLOOKUP(I22,'Point Values'!$A:$B,2,FALSE) -> 0 | S22: =VLOOKUP(J22,'Point Values'!$A:$B,2,FALSE) -> 0 | T22: =VLOOKUP(K22,'Point Values'!$A:$B,2,FALSE) -> 0 | U22: =VLOOKUP(L22,'Point Values'!$A:$B,2,FALSE) -> 0 | V22: =VLOOKUP(M22,'Point Values'!$A:$B,2,FALSE) -> 88
A23: 21 | B23: 19 | C23: Kevin Girard | E23: 84 | F23: . | G23: . | H23: . | I23: . | J23: . | K23: . | L23: 7 | M23: . | O23: =VLOOKUP(F23,'Point Values'!$A:$B,2,FALSE) -> 0 | P23: =VLOOKUP(G23,'Point Values'!$A:$B,2,FALSE) -> 0 | Q23: =VLOOKUP(H23,'Point Values'!$A:$B,2,FALSE) -> 0 | R23: =VLOOKUP(I23,'Point Values'!$A:$B,2,FALSE) -> 0 | S23: =VLOOKUP(J23,'Point Values'!$A:$B,2,FALSE) -> 0 | T23: =VLOOKUP(K23,'Point Values'!$A:$B,2,FALSE) -> 0 | U23: =VLOOKUP(L23,'Point Values'!$A:$B,2,FALSE) -> 84 | V23: =VLOOKUP(M23,'Point Values'!$A:$B,2,FALSE) -> 0
A24: 22 | B24: 21 | C24: Patrick Lyden | E24: 82 | F24: . | G24: . | H24: . | I24: . | J24: 8 | K24: . | L24: . | M24: . | O24: =VLOOKUP(F24,'Point Values'!$A:$B,2,FALSE) -> 0 | P24: =VLOOKUP(G24,'Point Values'!$A:$B,2,FALSE) -> 0 | Q24: =VLOOKUP(H24,'Point Values'!$A:$B,2,FALSE) -> 0 | R24: =VLOOKUP(I24,'Point Values'!$A:$B,2,FALSE) -> 0 | S24: =VLOOKUP(J24,'Point Values'!$A:$B,2,FALSE) -> 82 | T24: =VLOOKUP(K24,'Point Values'!$A:$B,2,FALSE) -> 0 | U24: =VLOOKUP(L24,'Point Values'!$A:$B,2,FALSE) -> 0 | V24: =VLOOKUP(M24,'Point Values'!$A:$B,2,FALSE) -> 0
A25: 23 | B25: 17 | C25: Aaron Gaddy | E25: 80 | F25: . | G25: . | H25: 9 | I25: . | J25: . | K25: . | L25: . | M25: . | O25: =VLOOKUP(F25,'Point Values'!$A:$B,2,FALSE) -> 0 | P25: =VLOOKUP(G25,'Point Values'!$A:$B,2,FALSE) -> 0 | Q25: =VLOOKUP(H25,'Point Values'!$A:$B,2,FALSE) -> 80 | R25: =VLOOKUP(I25,'Point Values'!$A:$B,2,FALSE) -> 0 | S25: =VLOOKUP(J25,'Point Values'!$A:$B,2,FALSE) -> 0 | T25: =VLOOKUP(K25,'Point Values'!$A:$B,2,FALSE) -> 0 | U25: =VLOOKUP(L25,'Point Values'!$A:$B,2,FALSE) -> 0 | V25: =VLOOKUP(M25,'Point Values'!$A:$B,2,FALSE) -> 0
A26: 24
A27: *Ties will be broken by: 1) number of wins, 2) number of 2nd places, 3) number of third place finishes, etc., until the tie is broken).

Sheet Point Values
A1: 1 | B1: 100
A2: 2 | B2: 97
A3: 3 | B3: 94
A4: 4 | B4: 91
A5: 5 | B5: 88
A6: 6 | B6: 86
A7: 7 | B7: 84
A8: 8 | B8: 82
A9: 9 | B9: 80
A10: 10 | B10: 78
A11: 11 | B11: 76
A12: 12 | B12: =B11-2 -> 74
A13: 13 | B13: =B12-2 -> 72
A14: 14 | B14: 70
A15: 15 | B15: 68
A16: 16 | B16: 67
A17: 17 | B17: =B16-1 -> 66
A18: 18 | B18: =B17-1 -> 65
A19: 19 | B19: 64
A20: 20 | B20: 63
A21: 21 | B21: 62
A22: 22 | B22: 61
A23: 23 | B23: 60
A24: 24 | B24: 59
A25: 25 | B25: 58
A26: 26 | B26: 57
A27: 27 | B27: 56
A28: 28 | B28: 55
A29: 29 | B29: 54
A30: 30 | B30: 53
A31: X | B31: 0
A32: DQ | B32: 0
A33: . | B33: 0
